2CCN - Level 2 Cost Centre Name,,9CCN - Level 9 Cost Centre Name,9CCC - Level 9 Cost Centre Code,9AN - Level 9 Account Name,9AC - Level 9 Account Code,Transaction Description,Date Paid,Transaction Reference,Analysed Amount,2AC - Level 2 Account Codes,Supplier Name,Supplier Code
Gloucester City Council,23UE,REDACTED,REDACTED,REDACTED,REDACTED,REDACTED,01/08/2014,REDACTED,639.4,CAP,REDACTED,REDACTED
Gloucester City Council,23UE,Council Streetcare Team,HI101,Maint Of Grounds - General,3030,Standard Pelican door,01/08/2014,382039,268.5,NET,Environmental Care Advertising Ltd,54093G
Gloucester City Council,23UE,Countryside Unit,LP201,Contract Cleaning,3620,Cleaning rangers office,01/08/2014,388398,130,NET,Cv Fisher Cleaning Services,14907C
Gloucester City Council,23UE,Countryside Unit,LP201,Routine R And M - Vehicles,4011,"Shackles, nuts & bolts",01/08/2014,388382,331.4,NET,Commercial Mower Supplies,06799D
Gloucester City Council,23UE,Development Management,PT200,Advertising And Publicity,5702,Advertisement 25/07/2014,01/08/2014,388390,175.3,NET,Local World Ltd,08556P
Gloucester City Council,23UE,Docks Complex - Catering Servs,RB110,Catering Provisions -Food,5110,Food,01/08/2014,388149,66.28,NET,Janes Pantry,24500W
Gloucester City Council,23UE,Events,LT410,Events,5952,"Gloucester Day Event 2014, Contribution",01/08/2014,388369,2000,NET,Barton Fayre,50437K
Gloucester City Council,23UE,Financial Services,RT200,Vocational Training,2970,AAT Student Membership Renewal,01/08/2014,388371,84,NET,Association Of Accounting Technicians,01862X
Gloucester City Council,23UE,Guildhall Bar And Caf�,LA210,Catering Provisions -Food,5110,Food w/e 27/07/2014,01/08/2014,388373,55.3,NET,Janes Pantry,24500W
Gloucester City Council,23UE,Hous Market Partnership Grant,CY045,Other Capital Grants,0089,REDACTED,01/08/2014,388131,22000,CAP,Jephson Housing Association Group,63993RV
Gloucester City Council,23UE,REDACTED,REDACTED,REDACTED,REDACTED,REDACTED,01/08/2014,REDACTED,400,NET,REDACTED,REDACTED
Gloucester City Council,23UE,19a Westgate Street,RB532,General Repair/Maint Buildings,3000,"Pure Hairdressers, Westgate Street",04/08/2014,388251,80,NET,Three Counties Drain Service,44033V
Gloucester City Council,23UE,Blackfriars Catering,LA220,Hire Of Equipment,5020,Hiball Glasses,04/08/2014,387923,75,NET,Mjs Catering Equipment,57425Z
Gloucester City Council,23UE,City Museum And Art Gallery,LM200,Advertising And Publicity,5702,Sponsorship Campaign 14/15,04/08/2014,388260,3000,NET,Soglos,07953J
Gloucester City Council,23UE,City Museum And Art Gallery,LM200,Publications For Sale,5064,PADS,04/08/2014,385636,184.32,NET,Emblem Print Products Limited,54871Z
Gloucester City Council,23UE,Civica It Contract,RT270,Contracted Services,6970,IT Managed Services August 14,04/08/2014,387016,47916.66,NET,Civica Uk Ltd,10841X
Gloucester City Council,23UE,Disabled Facilities Grants,CY013,Disabled Facility Grants,0074,disabled facilities grant,04/08/2014,388405,4395,CAP,L Coward & Son Ltd,47989M
Gloucester City Council,23UE,Disabled Facilities Grants,CY013,Disabled Facility Grants,0074,MDF5009 final payment,04/08/2014,388446,8338.32,CAP,Mears Home Improvement Ltd,00096G
Gloucester City Council,23UE,Disabled Facilities Grants,CY013,Disabled Facility Grants,0074,MDF5097,04/08/2014,388445,1150,CAP,Tpg Disableaids,51324R
Gloucester City Council,23UE,Docks Complex - Services,RB100,Service Charges,3020,Rental 12 Months,04/08/2014,387940,612,NET,Wessex Products (Leasing) Ltd,03684C
Gloucester City Council,23UE,Financial Services,RT200,Employee Related Insurances,2960,Risk Management Consultancy Services 14,04/08/2014,385981,9000,NET,Zurich Municipal,06385M
Gloucester City Council,23UE,Folk Museum,LM210,Advertising And Publicity,5702,Sponsorship Campaign 14/15,04/08/2014,388260,3000,NET,Soglos,07953J
Gloucester City Council,23UE,Folk Museum,LM210,Operational Equipment <5000,5012,3 Speed Chrome Fan,04/08/2014,388249,87,NET,Key Industrial Equipment Ltd,51932J
Gloucester City Council,23UE,Folk Museum,LM210,Operational Equipment <5000,5012,Laminator,04/08/2014,388250,96.9,NET,Key Industrial Equipment Ltd,51932J
Gloucester City Council,23UE,General Drainage Works,PY241,Contract Payments,0020,Remove all vegetation,04/08/2014,388393,2200,CAP,Mr M G Horton T/A H&T Property Maintenance,09210X
Gloucester City Council,23UE,REDACTED,REDACTED,REDACTED,REDACTED,REDACTED,04/08/2014,REDACTED,100,NET,REDACTED,REDACTED
Gloucester City Council,23UE,Housing Works In Default,HD500,Clearance And Cleansing Fees,5384,REDACTED,04/08/2014,388329,275,NET,Rj Contracting (Environmental) Ltd,07429H
Gloucester City Council,23UE,REDACTED,REDACTED,REDACTED,REDACTED,REDACTED,04/08/2014,REDACTED,200,NET,REDACTED,REDACTED
Gloucester City Council,23UE,Housing Works In Default,HD500,Clearance And Cleansing Fees,5384,"Stanley Road, removal of fly tip rubbish",04/08/2014,388351,225,NET,Rj Contracting (Environmental) Ltd,07429H
Gloucester City Council,23UE,Interpretation & Signage,GY012,Contract Payments,0020,Signage & Dressing,04/08/2014,388334,10000,CAP,Marketing Gloucester Ltd,08925E
Gloucester City Council,23UE,Investment Property,RB500,Service Charges,3020,Rental 12 Months,04/08/2014,387940,168,NET,Wessex Products (Leasing) Ltd,03684C
Gloucester City Council,23UE,Kings Quarter,RY146,Legal/Survey Fees -Land,0002,Kings Quarter Archeology Project 10414,04/08/2014,388364,16298.74,CAP,Ken Pink Plant Hire Ltd,56884V
Gloucester City Council,23UE,Mortgage Rescue,CH128,Fees For Services Received,5350,temporary staff,04/08/2014,388154,163.2,NET,One To One Recruitment,04752H
Gloucester City Council,23UE,Mortgage Rescue,CH128,Fees For Services Received,5350,temporary staff,04/08/2014,388350,326.4,NET,One To One Recruitment,04752H
Gloucester City Council,23UE,Stationery Services,RS150,Stationery,5302,Stationary,04/08/2014,388394,16.97,NET,Lyreco Uk Ltd,11746G
Gloucester City Council,23UE,REDACTED,REDACTED,REDACTED,REDACTED,REDACTED,04/08/2014,REDACTED,0,NET,REDACTED,REDACTED
Gloucester City Council,23UE,Summer Festival,LT300,Fees For Services Received,5350,Sound Installation fireworks 19/07/2014,04/08/2014,387901,1654,NET,Peak Hire Limited,07936J
Gloucester City Council,23UE,Swrda Asset Transfer,RY184,Capital General Repairs & Main,0013,Barbican Car park Improvements,04/08/2014,388332,1545.6,CAP,Anderson Civil Engineering Uk Ltd,09083D
Gloucester City Council,23UE,Tic Rovercard Sales,LT101,Materials For Sale,5080,Period 2 14/15,04/08/2014,388245,5200.5,NET,Stagecoach Services Ltd*,56554W
Gloucester City Council,23UE,Tic Rovercard Sales,LT101,Sale Of Goods And Services,9230,Period 2 14/15,04/08/2014,388245,-433.38,NET,Stagecoach Services Ltd*,56554W
Gloucester City Council,23UE,27-29 Commercial Road,RB542,General Repair/Maint Buildings,3000,"Commercial Road, Clearance of weeds",05/08/2014,387973,111.12,NET,Rf Gardiner Limited,12299B
Gloucester City Council,23UE,Asset Management,RS300,Basic Pay - Temporary Staff,2751,temporary staff,05/08/2014,388402,2400,NET,Unity Recruitment,14857S
Gloucester City Council,23UE,Asset Management,RS300,Basic Pay - Temporary Staff,2751,temporary staff,05/08/2014,388401,2400,NET,Unity Recruitment,14857S
Gloucester City Council,23UE,Barbican Car Park,RB543,General Repair/Maint Buildings,3000,"Barbican House, Asbestos removal",05/08/2014,387974,420.48,NET,Rf Gardiner Limited,12299B
Gloucester City Council,23UE,Barbican Car Park,RB543,General Repair/Maint Buildings,3000,"Barbican House, clear water",05/08/2014,387972,98.64,NET,Rf Gardiner Limited,12299B
Gloucester City Council,23UE,Business Transformation & Tech,RT700,Computer Consumables,5422,Adaptor,05/08/2014,387832,64,NET,Qual Technology,56512N
Gloucester City Council,23UE,Car Parks,GY002,Contract Payments,0020,Longsmith Street Car Park,05/08/2014,387787,2029.5,CAP,Rf Gardiner Limited,12299B
Gloucester City Council,23UE,Cemeteries,HC300,Clothing,5200,Safety Boots,05/08/2014,388258,73.4,NET,Safpro Industrial Supply Co,39190W
Gloucester City Council,23UE,Cemeteries,HC300,Operational Materials,5070,Toilet Rolls,05/08/2014,388385,66,NET,Safpro Industrial Supply Co,39190W
Gloucester City Council,23UE,City Museum And Art Gallery,LM200,Events,5952,accommodation 28th - 30th March 14,05/08/2014,388493,270.84,NET,Edward Hotel,00141D
Gloucester City Council,23UE,City Museum And Art Gallery,LM200,Exhibits And Collections,5038,A4 Leaflet Holder,05/08/2014,388140,81.45,NET,3d Displays Ltd,57544P
Gloucester City Council,23UE,Client Revs & Bens Contract,RT240,Bailiffs Fees,5368,CTax VAT on fees,05/08/2014,388504,0,NET,Bristow & Sutor,05450M
Gloucester City Council,23UE,Client Revs & Bens Contract,RT240,Bailiffs Fees,5368,VAT due on statutory fees,05/08/2014,388505,0,NET,Bristow & Sutor,05450M
Gloucester City Council,23UE,Client Revs & Bens Contract,RT240,Bailiffs Fees,5368,VAT on statutory fees,05/08/2014,388324,377.87,NET,Bristow & Sutor,05450M
Gloucester City Council,23UE,Client Revs & Bens Contract,RT240,Bailiffs Fees,5368,VAT on statutory fees,05/08/2014,388325,0,NET,Bristow & Sutor,05450M
Gloucester City Council,23UE,Client Revs & Bens Contract,RT240,Bailiffs Fees,5368,VAT ON STATUTORY FEES,05/08/2014,385900,0,NET,Bristow & Sutor,05450M
Gloucester City Council,23UE,Council Streetcare Team,HI101,Operational Equipment <5000,5012,3 in 1 jacket,05/08/2014,388479,35.8,NET,Safpro Industrial Supply Co,39190W
Gloucester City Council,23UE,Council Streetcare Team,HI101,Operational Equipment <5000,5012,fleece jacket,05/08/2014,388478,22.5,NET,Safpro Industrial Supply Co,39190W
Gloucester City Council,23UE,Crematorium,HC200,Memorial Plaques,5053,Woodland memorial post,05/08/2014,388491,72.95,NET,Treasured Memories Limited,11058H
Gloucester City Council,23UE,Democratic Services,RS100,Vocational Training,2970,ADSO conference 2014,05/08/2014,388484,195,NET,Association Of Democratic Services Officers,11883V
Gloucester City Council,23UE,Development Management,PT200,Consultants Fees,5349,June 2014,05/08/2014,387657,800,NET,Dpds Ltd,05404V
Gloucester City Council,23UE,Development Management,PT200,Consultants Fees,5349,MAR/APR14 re 13/01261/OUT,05/08/2014,385583,1750,NET,Dpds Ltd,05404V
Gloucester City Council,23UE,Docks Complex - Services,RB100,General Repair/Maint Buildings,3000,"Herbert Warehouse, dishwasher fault",05/08/2014,387848,109.32,NET,Rf Gardiner Limited,12299B
Gloucester City Council,23UE,Docks Complex - Services,RB100,General Repair/Maint Buildings,3000,"Herbert Warehouse, Fix Store Room Light",05/08/2014,387793,39.42,NET,Rf Gardiner Limited,12299B
Gloucester City Council,23UE,Docks Complex - Services,RB100,General Repair/Maint Buildings,3000,"Herbert Warehouse, lighting fault",05/08/2014,387971,51.84,NET,Rf Gardiner Limited,12299B
Gloucester City Council,23UE,Docks Complex - Services,RB100,General Repair/Maint Buildings,3000,"Herbert Warehouse, repair fire door",05/08/2014,387849,32.84,NET,Rf Gardiner Limited,12299B
Gloucester City Council,23UE,Docks Complex - Services,RB100,General Repair/Maint Buildings,3000,"Herbert Warehouse, reposition floor box",05/08/2014,387786,26.28,NET,Rf Gardiner Limited,12299B
Gloucester City Council,23UE,Docks Complex - Services,RB100,General Repair/Maint Buildings,3000,"Phillpotts Warehouse, repair lights",05/08/2014,387784,78.84,NET,Rf Gardiner Limited,12299B
Gloucester City Council,23UE,Docks Complex - Services,RB100,Repair/Maint Of Fixed Plant,3006,"Replace chiller driptrays, north warehou",05/08/2014,388265,1874.16,NET,Axiom Building Services,14908A
Gloucester City Council,23UE,Electrical Investigatory Works,RY142,Contract Payments,0020,"Barbican House, emergency lighting test",05/08/2014,387795,128,CAP,Rf Gardiner Limited,12299B
Gloucester City Council,23UE,Electrical Investigatory Works,RY142,Contract Payments,0020,Dry Riser Inspection,05/08/2014,388387,45,CAP,A & E Fire Equipment Limited,54289L
Gloucester City Council,23UE,Employers Pension Contribs,ZR355,Pension Contribs Incl Backf,2901,Pension Scheme June 14,05/08/2014,387269,26448.18,NET,Gloucestershire County Council,10614L
Gloucester City Council,23UE,Financial Services,RT200,Planning Direct Action,5347,temporary staff,05/08/2014,387482,2175,NET,Robert Half Ltd,03959K
Gloucester City Council,23UE,General Drainage Works,PY241,Contract Payments,0020,Topographical survey,05/08/2014,388128,1995,CAP,Monument Geomatics,11065F
Gloucester City Council,23UE,General Works Fund,RY203,Consultants Fees,0030,temporary staff,05/08/2014,387960,76,CAP,Find The Engineer Recruitment Ltd*,12977Z
Gloucester City Council,23UE,General Works Fund,RY203,Consultants Fees,0030,temporary staff,05/08/2014,387958,845.5,CAP,Find The Engineer Recruitment Ltd*,12977Z
Gloucester City Council,23UE,General Works Fund,RY203,Contract Payments,0020,"City Museum, Install emergency lights",05/08/2014,387773,993.12,CAP,Rf Gardiner Limited,12299B
Gloucester City Council,23UE,Gf Lifelinks,CH180,Contracted Services,6970,July Managment Fee 2014,05/08/2014,388142,5270.83,NET,Gloucester City Homes,05244T
Gloucester City Council,23UE,Group Mgr Financial Services,GO100,Vocational Training,2970,Defying Gravity event 17/7/14,05/08/2014,388485,150,NET,Lg Futures,11251S
Gloucester City Council,23UE,Guildhall Events,LA200,Advertising And Publicity,5702,Guildhall adverts July 2014,05/08/2014,388509,412.49,NET,Local World Ltd,08556P
Gloucester City Council,23UE,Hempsted Market/Car Boot,HM234,Maint Of Grounds - General,3030,"hempsted Meadow Market, faulty pillars",05/08/2014,388404,284.05,NET,Rf Gardiner Limited,12299B
Gloucester City Council,23UE,Homelessness,CH120,Board And Lodging,5515,"June 2014, Homeless voids",05/08/2014,388392,666.64,NET,Gloucester City Homes,05244T
Gloucester City Council,23UE,Homelessness Prevention,CH122,Fees For Services Received,5350,REDACTED,05/08/2014,388521,349.5,NET,Rowberry Morris Solicitors,38500N
Gloucester City Council,23UE,REDACTED,REDACTED,REDACTED,REDACTED,REDACTED,05/08/2014,REDACTED,250,NET,REDACTED,REDACTED
Gloucester City Council,23UE,Internal Audit,RT300,Basic Pay - Temporary Staff,2751,temporary staff,05/08/2014,388502,1073,NET,Robert Half Ltd,03959K
Gloucester City Council,23UE,Internal Health & Safety,EH110,Other Minor Supplies Services,5590,Servicare Renewal Chair,05/08/2014,386681,145,NET,Evac+Chair International Ltd,10907S
Gloucester City Council,23UE,Investment Property,RB500,General Repair/Maint Buildings,3000,"Barbican House, re-connect sump",05/08/2014,387789,65.7,NET,Rf Gardiner Limited,12299B
Gloucester City Council,23UE,Investment Property,RB500,General Repair/Maint Buildings,3000,"City Museum, check sump pump",05/08/2014,387794,52.56,NET,Rf Gardiner Limited,12299B
Gloucester City Council,23UE,Investment Property,RB500,General Repair/Maint Buildings,3000,"Coney Hill Crem, attend to water heater",05/08/2014,387843,346.56,NET,Rf Gardiner Limited,12299B
Gloucester City Council,23UE,Investment Property,RB500,General Repair/Maint Buildings,3000,Coney Hill Crem- re-attach strip to door,05/08/2014,387840,32.84,NET,Rf Gardiner Limited,12299B
Gloucester City Council,23UE,Investment Property,RB500,General Repair/Maint Buildings,3000,"Coney Hill Crem, re-fix step nosings",05/08/2014,387839,32.84,NET,Rf Gardiner Limited,12299B
Gloucester City Council,23UE,Investment Property,RB500,General Repair/Maint Buildings,3000,"Eastgate Market, repair lights",05/08/2014,387975,56.88,NET,Rf Gardiner Limited,12299B
Gloucester City Council,23UE,Investment Property,RB500,General Repair/Maint Buildings,3000,"Eastgate market,repair loading bay light",05/08/2014,387772,63.83,NET,Rf Gardiner Limited,12299B
Gloucester City Council,23UE,Investment Property,RB500,General Repair/Maint Buildings,3000,"Eastgate Market, various electrical work",05/08/2014,387783,356.19,NET,Rf Gardiner Limited,12299B
Gloucester City Council,23UE,Investment Property,RB500,General Repair/Maint Buildings,3000,"Eastgate Viewing Chamber, repairs",05/08/2014,387782,90.02,NET,Rf Gardiner Limited,12299B
Gloucester City Council,23UE,Investment Property,RB500,General Repair/Maint Buildings,3000,Folk Museum. repair door handles,05/08/2014,387842,32.84,NET,Rf Gardiner Limited,12299B
Gloucester City Council,23UE,Investment Property,RB500,General Repair/Maint Buildings,3000,"Folk Museum, repair leaking sink",05/08/2014,387844,30.08,NET,Rf Gardiner Limited,12299B
Gloucester City Council,23UE,Investment Property,RB500,General Repair/Maint Buildings,3000,"Folk Museum, replace light fitting",05/08/2014,387836,107.45,NET,Rf Gardiner Limited,12299B
Gloucester City Council,23UE,Investment Property,RB500,General Repair/Maint Buildings,3000,"Folk Museum, Water Heater",05/08/2014,387845,52.56,NET,Rf Gardiner Limited,12299B
Gloucester City Council,23UE,Investment Property,RB500,General Repair/Maint Buildings,3000,"Guildhall, unblock hopper",05/08/2014,387790,32.84,NET,Rf Gardiner Limited,12299B
Gloucester City Council,23UE,Investment Property,RB500,General Repair/Maint Buildings,3000,King George V Pavillion,05/08/2014,387834,151.45,NET,Rf Gardiner Limited,12299B
Gloucester City Council,23UE,Investment Property,RB500,General Repair/Maint Buildings,3000,"Shopmobility, check electrics",05/08/2014,387835,52.56,NET,Rf Gardiner Limited,12299B
Gloucester City Council,23UE,Investment Property,RB500,General Repair/Maint Buildings,3000,"Tredworth Cemetery, re-connect electrics",05/08/2014,387788,52.56,NET,Rf Gardiner Limited,12299B
Gloucester City Council,23UE,Investment Property,RB500,Repair/Maint Of Fixed Plant,3006,RE ST OSWALDS PARK BOARD,05/08/2014,388118,35,NET,Alder King*,02367D
Gloucester City Council,23UE,Kings Sq Paving Emerg Works,RY161,Contract Payments,0020,KINGS SQUARE WORKS,05/08/2014,388112,560.87,CAP,Rf Gardiner Limited,12299B
Gloucester City Council,23UE,Legal Services,RS200,Basic Pay - Temporary Staff,2751,temporary staff,05/08/2014,388266,840,NET,Badenoch & Clark,01536P
Gloucester City Council,23UE,Legal Services,RS200,Basic Pay - Temporary Staff,2751,temporary staff,05/08/2014,388349,800,NET,Badenoch & Clark,01536P
Gloucester City Council,23UE,Off Street Car Parks,PP110,General Repair/Maint Buildings,3000,"Kings Square, check emergency lights",05/08/2014,387785,128,NET,Rf Gardiner Limited,12299B
Gloucester City Council,23UE,Off Street Car Parks,PP110,General Repair/Maint Buildings,3000,"Kings Walk Car Park, unblock gullies",05/08/2014,387838,25.08,NET,Rf Gardiner Limited,12299B
Gloucester City Council,23UE,Off Street Car Parks,PP110,General Repair/Maint Buildings,3000,"Longsmith Car Park, repair lights",05/08/2014,387847,535.18,NET,Rf Gardiner Limited,12299B
Gloucester City Council,23UE,Off Street Car Parks,PP110,General Repair/Maint Buildings,3000,"Station Rd Car Park, remove weeds",05/08/2014,387846,129.75,NET,Rf Gardiner Limited,12299B
Gloucester City Council,23UE,Off Street Car Parks,PP110,General Repair/Maint Buildings,3000,St Michaels Square & great western rd,05/08/2014,387841,754.15,NET,Rf Gardiner Limited,12299B
Gloucester City Council,23UE,Pollution Control,HE300,Fees For Services Received,5350,EVENT BOOKING DELEGATE,05/08/2014,388111,225,NET,Dods Parliamentary Communications Ltd,06984G
Gloucester City Council,23UE,Stationery Services,RS150,Stationery,5302,paper,05/08/2014,388489,485.35,NET,Premier Paper Group Ltd,09166Y
Gloucester City Council,23UE,Stationery Services,RS150,Stationery,5302,paper,05/08/2014,388490,57.46,NET,Premier Paper Group Ltd,09166Y
Gloucester City Council,23UE,St Michaels Tower,GY016,Contract Payments,0020,"Longsmith Car Park, deep clean store",05/08/2014,387837,449.93,CAP,Rf Gardiner Limited,12299B
Gloucester City Council,23UE,Summer Festival,LT300,Fees For Services Received,5350,Fireworks display 2/8/14,05/08/2014,388487,12500,NET,Titanium Fireworks Ltd,14057K
Gloucester City Council,23UE,Summer Festival,LT300,Fees For Services Received,5350,Summer Sounds generator hire,05/08/2014,388495,457,NET,Ru Electrical Services,10389U
Gloucester City Council,23UE,The Arbor,HC501,Catering Provisions -Food,5110,Food w/e 20/07/2014,05/08/2014,388150,167.93,NET,Janes Pantry,24500W
Gloucester City Council,23UE,Tic Relocation,GY005,Contract Payments,0020,temporary staff,05/08/2014,387956,313.5,CAP,Find The Engineer Recruitment Ltd*,12977Z
Gloucester City Council,23UE,Allotments,HI104,Operational Equipment <5000,5012,skip exchange,06/08/2014,388556,440,NET,Allstone Sand & Gravel Aggregates Ltd,00940M
Gloucester City Council,23UE,Asset Management,RS300,Basic Pay - Temporary Staff,2751,Professional services JUL14,06/08/2014,388563,6450,NET,Ardley Associates,09369F
Gloucester City Council,23UE,Building Control,PT400,Fees For Services Received,5350,Plan Checking Service,06/08/2014,386883,505,NET,Stroud District Council,42500D
Gloucester City Council,23UE,Building Control,PT400,Fees For Services Received,5350,Plan Checking Service,06/08/2014,387955,1209.38,NET,Stroud District Council,42500D
Gloucester City Council,23UE,Building Control,PT400,Subscriptions,5600,Knights Guide to building control law,06/08/2014,386833,320,NET,Lexis Nexis Ltd,01712U
Gloucester City Council,23UE,Cemeteries,HC300,Maint Of Grounds - General,3030,"Crem mechanical sweep 16/6, 7/7, 28/7",06/08/2014,388517,192,NET,Enterprise (Aol) Ltd,06695G
Gloucester City Council,23UE,Cems/Crems Admin,HC100,Office Equipment <5000,5010,cash register rolls,06/08/2014,388593,10.99,NET,Office Star Group Ltd,55874H
Gloucester City Council,23UE,Cems/Crems Admin,HC100,Office Equipment <5000,5010,inkjet cartridges,06/08/2014,388594,59.11,NET,Office Star Group Ltd,55874H
Gloucester City Council,23UE,REDACTED,REDACTED,REDACTED,REDACTED,REDACTED,06/08/2014,REDACTED,130,NET,REDACTED,REDACTED
Gloucester City Council,23UE,REDACTED,REDACTED,REDACTED,REDACTED,REDACTED,06/08/2014,REDACTED,-54.17,NET,REDACTED,REDACTED
Gloucester City Council,23UE,Community Strat & Engagement,FP100,Fees For Services Received,5350,Kingsway Builder 2014-15,06/08/2014,388565,18795.94,NET,Gl Communities,09535X
Gloucester City Council,23UE,Council Streetcare Team,HI101,Signs / Nameplates,3039,Little Walk street name plaque,06/08/2014,388500,130,NET,Enterprise (Aol) Ltd,06695G
Gloucester City Council,23UE,Countryside Unit,LP201,Livestock Foodstuff,5841,goods,06/08/2014,388581,8.99,NET,Countrywide Farmers*,55687J
Gloucester City Council,23UE,Countryside Unit,LP201,Routine R And M - Vehicles,4011,goods,06/08/2014,388581,8.73,NET,Countrywide Farmers*,55687J
Gloucester City Council,23UE,Daniels Brook S106,LY120,Contract Payments,0020,Wild Flowers,06/08/2014,387585,170,CAP,Emorsgate Seeds,51628R
Gloucester City Council,23UE,REDACTED,REDACTED,REDACTED,REDACTED,REDACTED,06/08/2014,REDACTED,86,NET,REDACTED,REDACTED
Gloucester City Council,23UE,Disabled Facilities Grants,CY013,Disabled Facility Grants,0074,REDACTED,06/08/2014,388269,13502.16,CAP,Davey's Building Maintenance,57010K
Gloucester City Council,23UE,Docks Complex - Catering Servs,RB110,Catering Provisions -Food,5110,Food w/e 27/07/2014,06/08/2014,388374,91.8,NET,Janes Pantry,24500W
Gloucester City Council,23UE,Environmental Planning,LM340,Operational Materials,5070,DANIELS BROOK BAMBOO CANE REPLACEMENT,06/08/2014,388110,240,NET,Tcv T/A The Conservation Volunteers,55897V
Gloucester City Council,23UE,Financial Services,RT200,Computer Software Maintenance,5427,Fixed Assett consultancy,06/08/2014,388589,850,NET,Advanced Business Solutions,06072N
Gloucester City Council,23UE,Gloucester Guildhall,LA100,Cleaning Materials,3600,bluesealant,06/08/2014,388586,85,NET,Gentworks Ltd,10388W
Gloucester City Council,23UE,REDACTED,REDACTED,REDACTED,REDACTED,REDACTED,06/08/2014,REDACTED,550,NET,REDACTED,REDACTED
Gloucester City Council,23UE,REDACTED,REDACTED,REDACTED,REDACTED,REDACTED,06/08/2014,REDACTED,120,NET,REDACTED,REDACTED
Gloucester City Council,23UE,REDACTED,REDACTED,REDACTED,REDACTED,REDACTED,06/08/2014,REDACTED,240,NET,REDACTED,REDACTED
Gloucester City Council,23UE,REDACTED,REDACTED,REDACTED,REDACTED,REDACTED,06/08/2014,REDACTED,120,NET,REDACTED,REDACTED
Gloucester City Council,23UE,Homelessness,CH120,Removal And Storage Fees,5513,REDACTED,06/08/2014,388591,90,NET,Advanced Removals & Storage Ltd,57142R
Gloucester City Council,23UE,Homelessness,CH120,Removal And Storage Fees,5513,REDACTED,06/08/2014,388592,66.86,NET,Advanced Removals & Storage Ltd,57142R
Gloucester City Council,23UE,Housing Works In Default,HD500,Clearance And Cleansing Fees,5384,Shawsbury Ave bin store clearance,06/08/2014,388497,400,NET,Enterprise (Aol) Ltd,06695G
Gloucester City Council,23UE,National Express,LT105,Materials For Sale,5080,coach tickets JUL14,06/08/2014,388555,15418.25,NET,National Express Ltd,31455K
Gloucester City Council,23UE,National Express,LT105,Sale Of Goods And Services,9230,coach tickets JUL14,06/08/2014,388555,-1486.3,NET,National Express Ltd,31455K
Gloucester City Council,23UE,Nms Contract,HI102,Operational Equipment <5000,5012,kenneling costs FEB/MAR & APR14,06/08/2014,388498,4408.59,NET,Enterprise (Aol) Ltd,06695G
Gloucester City Council,23UE,Public Health,HD200,Other Minor Supplies Services,5590,refund for lunch club equipment,06/08/2014,388566,94.95,NET,Podsmead Big Local,14952X
Gloucester City Council,23UE,Tea Room,HC500,Catering Provisions -Liquor,5111,Liquor,06/08/2014,388262,299.35,NET,Cellar Supplies Cheltenham Ltd,01563L
Gloucester City Council,23UE,Theatre Tokens,LT106,Materials For Sale,5080,JUL14 theatre ticket sales,06/08/2014,388560,60,NET,Society Of London Theatre,05656Z
Gloucester City Council,23UE,Theatre Tokens,LT106,Sale Of Goods And Services,9230,JUL14 theatre ticket sales,06/08/2014,388560,-3,NET,Society Of London Theatre,05656Z
Gloucester City Council,23UE,Tic Theatre Ticket Sales,LT107,Materials For Sale,5080,JOLT golden ticket sales,06/08/2014,388557,80,NET,Theatre Gloucestershire,14640W
Gloucester City Council,23UE,Tic Theatre Ticket Sales,LT107,Materials For Sale,5080,Toad of Toad Hall ticket sales,06/08/2014,388559,1086,NET,Tyger Productions,14645K
Gloucester City Council,23UE,Tic Theatre Ticket Sales,LT107,Sale Of Goods And Services,9230,JOLT golden ticket sales,06/08/2014,388557,-3.55,NET,Theatre Gloucestershire,14640W
Gloucester City Council,23UE,Tic Theatre Ticket Sales,LT107,Sale Of Goods And Services,9230,Toad of Toad Hall ticket sales,06/08/2014,388559,-103,NET,Tyger Productions,14645K
Gloucester City Council,23UE,Tic Trading,LT110,Publications For Sale,5064,books for resale,06/08/2014,388580,66.6,NET,Black Dwarf Lightmoor Publications Ltd,59484M
Gloucester City Council,23UE,Aspire Admin Charges,LC105,Other Minor Income,9900,BAILIFF PAYMENTS 25/02/14,07/08/2014,388656,38.2,NET,Aspire Sports & Cultural Trust,08135V
Gloucester City Council,23UE,Aspire Admin Charges,LC105,Other Minor Income,9900,BAILIFFS 11/07/14 18/07/14,07/08/2014,388658,101,NET,Aspire Sports & Cultural Trust,08135V
Gloucester City Council,23UE,Blackfriars,LA609,Cleaning Materials,3600,JUN14 cleaning,07/08/2014,388675,455,NET,Into Cleaning,14609P
Gloucester City Council,23UE,Cemeteries,HC300,Basic Pay - Temporary Staff,2751,grass cutters,07/08/2014,388588,3588,NET,Anderson Recruitment Ltd,14646H
Gloucester City Council,23UE,Cemeteries,HC300,Major R And M - Vehicles,4010,strimmer,07/08/2014,388680,50.97,NET,Garden Machinery Gloucester,55641K
Gloucester City Council,23UE,Cemeteries,HC300,Other Minor Supplies Services,5590,gravel,07/08/2014,388671,960,NET,Allstone Sand & Gravel Aggregates Ltd,00940M
Gloucester City Council,23UE,Cemeteries,HC300,Routine R And M - Vehicles,4011,v belt,07/08/2014,388674,75.29,NET,Frank Sutton Ltd - Agric'L Engineer,42875D
Gloucester City Council,23UE,Cemeteries,HC300,Trade Refuse Tipping Fees,6297,dumper hire,07/08/2014,388678,380,NET,Allstone Sand & Gravel Aggregates Ltd,00940M
Gloucester City Council,23UE,Cemeteries,HC300,Trade Refuse Tipping Fees,6297,skip exchange,07/08/2014,388673,1545,NET,Allstone Sand & Gravel Aggregates Ltd,00940M
Gloucester City Council,23UE,Cemeteries,HC300,Trade Refuse Tipping Fees,6297,skip exchange,07/08/2014,388679,360,NET,Allstone Sand & Gravel Aggregates Ltd,00940M
Gloucester City Council,23UE,City Museum Catering,LM202,Catering Provisions -Food,5110,Food,07/08/2014,387818,6.2,NET,Total Produce Gloucester,12645E
Gloucester City Council,23UE,Council Streetcare Team,HI101,Other Minor Supplies Services,5590,litter pickers,07/08/2014,388666,397.5,NET,The Bell Brush Company,11985K
Gloucester City Council,23UE,Countryside Unit,LP201,Maint Of Grounds - General,3030,goods,07/08/2014,388688,15.6,NET,B&Q Trade Account,06346Y
Gloucester City Council,23UE,Countryside Unit,LP201,Maint Of Grounds - General,3030,seats,07/08/2014,388687,521,NET,Streetmaster Products,00534D
Gloucester City Council,23UE,Docks Complex - Services,RB100,Operational Equipment <5000,5012,Callout to install dishwasher,07/08/2014,388267,1605.5,NET,Aim Commercial Catering Equipment Services,15146A
Gloucester City Council,23UE,Docks Complex - Services,RB100,Operational Equipment <5000,5012,Ribbon & Cardholders,07/08/2014,388338,216.5,NET,Bannerbridge Plc,13703G
Gloucester City Council,23UE,Docks Complex - Services,RB100,Other Minor Supplies Services,5590,Plastic Cups,07/08/2014,388337,120,NET,Greenworks Solutions Ltd,05909G
Gloucester City Council,23UE,Gloucester Guildhall,LA100,Licences,5703,business radio licence,07/08/2014,388689,600,NET,Ofcom,02769C
Gloucester City Council,23UE,Gloucester Guildhall,LA100,Subscriptions,5600,Employees Annual Fee 14/15,07/08/2014,388129,235,NET,Green Business Uk,06576C
Gloucester City Council,23UE,Guildhall Bar And Caf�,LA210,Catering Provisions -Food,5110,Food,07/08/2014,388347,131.42,NET,Woodward Foodservice,10714F
Gloucester City Council,23UE,Guildhall Bar And Caf�,LA210,Catering Provisions -Liquor,5111,beergas,07/08/2014,388483,43.01,NET,Boc Ltd,59172L
Gloucester City Council,23UE,REDACTED,REDACTED,REDACTED,REDACTED,REDACTED,07/08/2014,REDACTED,150,NET,REDACTED,REDACTED
Gloucester City Council,23UE,REDACTED,REDACTED,REDACTED,REDACTED,REDACTED,07/08/2014,REDACTED,50,NET,REDACTED,REDACTED
Gloucester City Council,23UE,Hillfield Gardens S106,LY112,Contract Payments,0020,Hillfield Gdns sensory garden works,07/08/2014,388703,2492,CAP,D R Howse Services,13597E
Gloucester City Council,23UE,Inhouse Training,EH200,Vocational Training,2970,FAW course Sept 2014,07/08/2014,388198,180,NET,Aspire Sports & Cultural Trust,08135V
Gloucester City Council,23UE,Printing,RP103,Printing,5300,JUL14 printing,07/08/2014,388676,1542.94,NET,Alpha Colour Printers Ltd,00945B
Gloucester City Council,23UE,Publications,RC450,Subscriptions,5600,2014/15 corporate membership,07/08/2014,388700,250,NET,Lg Communications,06024A
Gloucester City Council,23UE,Public Health,HD200,Other Minor Supplies Services,5590,Streetgames Gloucester 2014,07/08/2014,388704,1350,NET,Active Connections,65827RV
Gloucester City Council,23UE,Summer Festival,LT300,Advertising And Publicity,5702,carnival road closure notice,07/08/2014,388692,528,NET,Local World Ltd,08556P
Gloucester City Council,23UE,REDACTED,REDACTED,REDACTED,REDACTED,REDACTED,07/08/2014,REDACTED,1012,NET,REDACTED,REDACTED
Gloucester City Council,23UE,REDACTED,REDACTED,REDACTED,REDACTED,REDACTED,07/08/2014,REDACTED,100,NET,REDACTED,REDACTED
Gloucester City Council,23UE,REDACTED,REDACTED,REDACTED,REDACTED,REDACTED,07/08/2014,REDACTED,300,NET,REDACTED,REDACTED
Gloucester City Council,23UE,REDACTED,REDACTED,REDACTED,REDACTED,REDACTED,07/08/2014,REDACTED,500,NET,REDACTED,REDACTED
Gloucester City Council,23UE,REDACTED,REDACTED,REDACTED,REDACTED,REDACTED,07/08/2014,REDACTED,500,NET,REDACTED,REDACTED
Gloucester City Council,23UE,REDACTED,REDACTED,REDACTED,REDACTED,REDACTED,07/08/2014,REDACTED,80,NET,REDACTED,REDACTED
Gloucester City Council,23UE,Summer Festival,LT300,Fees For Services Received,5350,generator hire,07/08/2014,388691,394,NET,R U Electrical Services,10409S
Gloucester City Council,23UE,Summer Festival,LT300,Operational Materials,5070,Fridge hire,07/08/2014,388516,65,NET,Gloucester Event Hire,56935D
Gloucester City Council,23UE,Targeted Historic Grants,GY008,Contract Payments,0020,Windows,07/08/2014,388238,12382,CAP,Heronhurst Window & Door Centre Ltd,14384R
Gloucester City Council,23UE,The Arbor,HC501,Catering Provisions -Food,5110,food,07/08/2014,388683,36.13,NET,Total Produce Gloucester,12645E
Gloucester City Council,23UE,The Arbor,HC501,Catering Provisions -Food,5110,food,07/08/2014,388684,51.41,NET,Total Produce Gloucester,12645E
Gloucester City Council,23UE,The Arbor,HC501,Catering Provisions -Food,5110,food,07/08/2014,388686,31.07,NET,Total Produce Gloucester,12645E
Gloucester City Council,23UE,The Arbor,HC501,Cleaning Materials,3600,food,07/08/2014,388655,19.05,NET,3663,55585U
Gloucester City Council,23UE,The Arbor,HC501,Cleaning Materials,3600,food,07/08/2014,388657,29.81,NET,3663,55585U
Gloucester City Council,23UE,The Arbor,HC501,Cleaning Materials,3600,food,07/08/2014,388698,64.91,NET,3663,55585U
Gloucester City Council,23UE,The Arbor,HC501,Other Minor Supplies Services,5590,flowers,07/08/2014,388685,53.9,NET,Carols Florist,01274X
Gloucester City Council,23UE,Blackfriars Priory,RY207,Contract Payments,0020,boiler piping works,08/08/2014,388595,158,CAP,Pinetree (Gloucester) Ltd,53288Y
Gloucester City Council,23UE,Cemeteries,HC300,Grave Indicators,5054,grave makers,08/08/2014,388780,792,NET,Arkell & Hurcombe,59812T
Gloucester City Council,23UE,Civica Admin Charges,RT105,Postages,5400,ACCT 0870585007 JUL14,08/08/2014,388113,1294.81,NET,Royal Mail S.Wales & South West,35830S
Gloucester City Council,23UE,Client Revs & Bens Contract,RT240,Fees For Services Received,5350,DHP application reviews,08/08/2014,388778,9513,NET,Civica Uk Ltd,10841X
Gloucester City Council,23UE,Council Streetcare Team,HI101,General Repair/Maint Buildings,3000,spare parts,08/08/2014,388551,458.84,NET,Ermin Plant Hire & Services Ltd,14150V
Gloucester City Council,23UE,Crematorium,HC200,Cremation Fees,9323,REFUND FOR CREMATION FEES PAID TWICE,08/08/2014,388792,737.5,NET,E Hill & Son Funeral Directors,14660P
Gloucester City Council,23UE,Crematorium,HC200,Fees For Services Received,5350,Doctors fees,08/08/2014,388758,460.88,NET,Dr R W Bell,01571P
Gloucester City Council,23UE,Crematorium,HC200,Fees For Services Received,5350,doctors fees,08/08/2014,388759,668.08,NET,Dr D Martin,00890P
Gloucester City Council,23UE,Crematorium,HC200,Fees For Services Received,5350,doctors fees,08/08/2014,388760,2428.72,NET,Dr C M Stretton,00306P
Gloucester City Council,23UE,Crematorium,HC200,Hire Of Chapel,9432,REFUND FOR CREMATION FEES PAID TWICE,08/08/2014,388792,125.44,NET,E Hill & Son Funeral Directors,14660P
Gloucester City Council,23UE,Crematorium,HC200,Organists' Fees,9322,REFUND FOR CREMATION FEES PAID TWICE,08/08/2014,388792,30.86,NET,E Hill & Son Funeral Directors,14660P
Gloucester City Council,23UE,Crematorium,HC200,Use Of Organ,9924,REFUND FOR CREMATION FEES PAID TWICE,08/08/2014,388792,30.86,NET,E Hill & Son Funeral Directors,14660P
Gloucester City Council,23UE,Docks Complex - Services,RB100,General Repair/Maint Buildings,3000,call out 29/5/14,08/08/2014,388751,307.5,NET,Gea Denco Ltd,57271C
Gloucester City Council,23UE,Docks Complex - Services,RB100,Lift Maintenance,3051,"North Warehouse, lift Inspection",08/08/2014,386837,670.19,NET,Schindler Ltd,06826C
Gloucester City Council,23UE,Environmental Planning,LM340,Repair/Maint Of Monuments,3004,submersible pump,08/08/2014,388571,327.25,NET,Ermin Plant Hire & Services Ltd,14150V
Gloucester City Council,23UE,Events,LT410,Fees For Services Received,5350,Grant part 1 re Carried on the Wind,08/08/2014,388772,8000,NET,Gloucestershire People Theatre,14954T
Gloucester City Council,23UE,Flooding And Drainage,HE306,Maint Of Grounds - General,3030,Barnwood Weir works,08/08/2014,388596,1100,NET,Js Builders & Landscaping Services,11078J
Gloucester City Council,23UE,Food Safety,HE100,Fees For Services Received,5350,glitterbug,08/08/2014,388775,31,NET,Food Safety Direct Ltd,07478U
Gloucester City Council,23UE,General Drainage Works,PY241,Contract Payments,0020,Matson Park works,08/08/2014,388597,4830,CAP,Rj Contracting (Environmental) Ltd,07429H
Gloucester City Council,23UE,General Works Fund,RY203,Consultants Fees,0030,speed survey,08/08/2014,388575,450,CAP,Rsl Highways & Transportation,15181Y
Gloucester City Council,23UE,General Works Fund,RY203,Consultants Fees,0030,temporary staff,08/08/2014,388578,627,CAP,Find The Engineer Recruitment Ltd*,12977Z
Gloucester City Council,23UE,Gloucester Guildhall,LA100,General Repair/Maint Buildings,3000,Cinema lighting works,08/08/2014,388702,417.19,NET,Connect Electrical Contracting Ltd,12405D
Gloucester City Council,23UE,REDACTED,REDACTED,REDACTED,REDACTED,REDACTED,08/08/2014,REDACTED,1151.75,NET,REDACTED,REDACTED
Gloucester City Council,23UE,REDACTED,REDACTED,REDACTED,REDACTED,REDACTED,08/08/2014,REDACTED,120,NET,REDACTED,REDACTED
Gloucester City Council,23UE,Guildhall Digital Cinema,LY154,Contract Payments,0020,Cinema projection room works,08/08/2014,388701,1353,CAP,Connect Electrical Contracting Ltd,12405D
Gloucester City Council,23UE,REDACTED,REDACTED,REDACTED,REDACTED,REDACTED,08/08/2014,REDACTED,100,NET,REDACTED,REDACTED
Gloucester City Council,23UE,REDACTED,REDACTED,REDACTED,REDACTED,REDACTED,08/08/2014,REDACTED,300,NET,REDACTED,REDACTED
Gloucester City Council,23UE,REDACTED,REDACTED,REDACTED,REDACTED,REDACTED,08/08/2014,REDACTED,110,NET,REDACTED,REDACTED
Gloucester City Council,23UE,REDACTED,REDACTED,REDACTED,REDACTED,REDACTED,08/08/2014,REDACTED,110,NET,REDACTED,REDACTED
Gloucester City Council,23UE,Homelessness,CH120,Board And Lodging,5515,Chelsea Court voids,08/08/2014,388781,1488.9,NET,Riverside Group Ltd,03241U
Gloucester City Council,23UE,Homelessness,CH120,Fees For Services Received,5350,medical report,08/08/2014,388777,20.5,NET,Dr R Watkins & Partners,59237H
Gloucester City Council,23UE,Homelessness,CH120,Fees For Services Received,5350,REDACTED,08/08/2014,388794,355.38,NET,Gloucester City Council,00029Y
Gloucester City Council,23UE,REDACTED,REDACTED,REDACTED,REDACTED,REDACTED,08/08/2014,REDACTED,364.6,NET,REDACTED,REDACTED
Gloucester City Council,23UE,REDACTED,REDACTED,REDACTED,REDACTED,REDACTED,08/08/2014,REDACTED,550,NET,REDACTED,REDACTED
Gloucester City Council,23UE,Homelessness,CH120,Rent In Advance,5516,REDACTED,08/08/2014,388863,360,NET,Selina's Lettings,13035F
Gloucester City Council,23UE,REDACTED,REDACTED,REDACTED,REDACTED,REDACTED,08/08/2014,REDACTED,450,NET,REDACTED,REDACTED
Gloucester City Council,23UE,REDACTED,REDACTED,REDACTED,REDACTED,REDACTED,08/08/2014,REDACTED,484.6,NET,REDACTED,REDACTED
Gloucester City Council,23UE,Human Resources,EH100,Employee Related Advertising,2920,HR Officer advert,08/08/2014,388508,196.2,NET,Local World Ltd,08556P
Gloucester City Council,23UE,Off Street Car Parks,PP110,General Repair/Maint Buildings,3000,Hare Ln N car park works,08/08/2014,388707,203.96,NET,Rf Gardiner Limited,12299B
Gloucester City Council,23UE,Stationery Services,RS150,Stationery,5302,stationery,08/08/2014,388768,2.54,NET,Lyreco Uk Ltd,11746G
Gloucester City Council,23UE,Stationery Services,RS150,Stationery,5302,stationery,08/08/2014,388769,72.97,NET,Lyreco Uk Ltd,11746G
Gloucester City Council,23UE,Summer Festival,LT300,Fees For Services Received,5350,Summer Festival works,08/08/2014,388699,97,NET,Connect Electrical Contracting Ltd,12405D
Gloucester City Council,23UE,The Arbor,HC501,Catering Provisions -Food,5110,food,08/08/2014,388651,333.31,NET,3663,55585U
Gloucester City Council,23UE,The Arbor,HC501,Catering Provisions -Food,5110,food,08/08/2014,388652,16.79,NET,3663,55585U
Gloucester City Council,23UE,The Arbor,HC501,Catering Provisions -Food,5110,food,08/08/2014,388653,211.29,NET,3663,55585U
Gloucester City Council,23UE,The Arbor,HC501,Catering Provisions -Food,5110,food,08/08/2014,388654,208.39,NET,3663,55585U
Gloucester City Council,23UE,The Arbor,HC501,Catering Provisions -Food,5110,food,08/08/2014,388659,402.13,NET,3663,55585U
Gloucester City Council,23UE,The Arbor,HC501,Catering Provisions -Food,5110,food,08/08/2014,388697,133.17,NET,3663,55585U
Gloucester City Council,23UE,The Arbor,HC501,Catering Provisions -Food,5110,Food w/e 27/07/2014,08/08/2014,388375,130.29,NET,Janes Pantry,24500W
Gloucester City Council,23UE,Tic Relocation,GY005,Contract Payments,0020,temporary staff,08/08/2014,388577,589,CAP,Find The Engineer Recruitment Ltd*,12977Z
Gloucester City Council,23UE,Aspire Admin Charges,LC105,Contracted Services,6970,AUG14 management fees,11/08/2014,388661,71458.92,NET,Aspire Sports & Cultural Trust,08135V
Gloucester City Council,23UE,Aspire Admin Charges,LC105,Other Minor Income,9900,BAILIFF PAYMENTS 25/07/14,11/08/2014,388796,41,NET,Aspire Sports & Cultural Trust,08135V
Gloucester City Council,23UE,Business Support,PT250,Fuel,4012,fuel,11/08/2014,388765,279.42,NET,Allstar Business Solutions Ltd (Arval),06594A
Gloucester City Council,23UE,Business Support,PT250,Fuel,4012,Fuel,11/08/2014,388400,251.05,NET,Allstar Business Solutions Ltd (Arval),06594A
Gloucester City Council,23UE,Business Support,PT250,Publications,5060,newspapers,11/08/2014,388879,195.5,NET,Ymk Supermarket,55281U
Gloucester City Council,23UE,Business Transformation & Tech,RT700,Computer Hardware Maintenance,5426,Additional work to Access control system,11/08/2014,387954,5691,NET,G4s Fire & Security Systems (Uk),13090X
Gloucester City Council,23UE,City Museum And Art Gallery,LM200,Catering Provisions -Food,5110,food,11/08/2014,388930,4.96,NET,Total Produce Gloucester,12645E
Gloucester City Council,23UE,City Museum And Art Gallery,LM200,Catering Provisions -Food,5110,food,11/08/2014,388931,4.96,NET,Total Produce Gloucester,12645E
Gloucester City Council,23UE,City Museum And Art Gallery,LM200,Catering Provisions -Food,5110,food,11/08/2014,388933,4.96,NET,Total Produce Gloucester,12645E
Gloucester City Council,23UE,City Museum Catering,LM202,Catering Provisions -Food,5110,food,11/08/2014,388896,4.96,NET,Total Produce Gloucester,12645E
Gloucester City Council,23UE,City Museum Catering,LM202,Catering Provisions -Food,5110,food,11/08/2014,388897,4.96,NET,Total Produce Gloucester,12645E
Gloucester City Council,23UE,City Museum Catering,LM202,Catering Provisions -Food,5110,food,11/08/2014,388898,4.96,NET,Total Produce Gloucester,12645E
Gloucester City Council,23UE,City Museum Catering,LM202,Catering Provisions -Food,5110,food,11/08/2014,388899,6.2,NET,Total Produce Gloucester,12645E
Gloucester City Council,23UE,City Museum Catering,LM202,Catering Provisions -Food,5110,food,11/08/2014,388901,70.69,NET,Woodward Foodservice,10714F
Gloucester City Council,23UE,City Museum Catering,LM202,Catering Provisions -Food,5110,food,11/08/2014,388902,57.23,NET,Woodward Foodservice,10714F
Gloucester City Council,23UE,City Museum Catering,LM202,Catering Provisions -Food,5110,food,11/08/2014,388904,72.5,NET,Woodward Foodservice,10714F
Gloucester City Council,23UE,City Museum Catering,LM202,Catering Provisions -Food,5110,food,11/08/2014,388905,122.08,NET,Woodward Foodservice,10714F
Gloucester City Council,23UE,City Museum Catering,LM202,Catering Provisions -Food,5110,food,11/08/2014,388934,4.96,NET,Total Produce Gloucester,12645E
Gloucester City Council,23UE,City Museum Catering,LM202,Catering Provisions -Liquor,5111,drink,11/08/2014,388911,85.4,NET,Cellar Supplies Cheltenham Ltd,01563L
Gloucester City Council,23UE,City Museum Catering,LM202,Other Catering Provisions,5112,machine rental jul14,11/08/2014,388866,135,NET,La Spaziale Uk Ltd,11823P
Gloucester City Council,23UE,Civica Contract Revs & Bens,RT250,Contracted Services,6970,September 2013 revenues & benefits,11/08/2014,388496,138572.7,NET,Civica Uk Ltd,10841X
Gloucester City Council,23UE,Civic Admin And Hospitality,RC210,Other Minor Supplies Services,5590,ties,11/08/2014,388776,302.5,NET,Foxgill Solutions,02583V
Gloucester City Council,23UE,Civica It Contract,RT270,Contracted Services,6970,IT managed services September 2014,11/08/2014,388492,47916.66,NET,Civica Uk Ltd,10841X
Gloucester City Council,23UE,Community Safety Projects,FP500,Basic Pay - Temporary Staff,2751,temporary staff,11/08/2014,388906,438.27,NET,Travail Employment Ltd,49371W
Gloucester City Council,23UE,Community Safety Projects,FP500,Other Minor Supplies Services,5590,workwear,11/08/2014,388770,74.6,NET,Safpro Industrial Supply Co,39190W
Gloucester City Council,23UE,Contact Centre,RB300,Basic Pay -Admin /Prof Staff,2601,temporary staff,11/08/2014,388763,814,NET,Cps Anystaff Recruitment Ltd,13945D
Gloucester City Council,23UE,Contact Centre,RB300,Basic Pay -Admin /Prof Staff,2601,temporary staff,11/08/2014,388764,495,NET,Cps Anystaff Recruitment Ltd,13945D
Gloucester City Council,23UE,Contact Centre,RB300,Basic Pay -Admin /Prof Staff,2601,temporary staff,11/08/2014,388753,814,NET,Cps Anystaff Recruitment Ltd,13945D
Gloucester City Council,23UE,Contact Centre,RB300,Basic Pay -Admin /Prof Staff,2601,temporary staff,11/08/2014,388766,814,NET,Cps Anystaff Recruitment Ltd,13945D
Gloucester City Council,23UE,Contact Centre,RB300,Basic Pay -Admin /Prof Staff,2601,Temporary Staff w/e 25/07/2014,11/08/2014,388362,610.74,NET,One To One Recruitment,04752H
Gloucester City Council,23UE,Contact Centre,RB300,Fees For Services Received,5350,Monthly Facility Fee August 2014,11/08/2014,388389,226.69,NET,Office Response,09439K
Gloucester City Council,23UE,Council Streetcare Team,HI101,Operational Equipment <5000,5012,workwear,11/08/2014,388771,137.4,NET,Safpro Industrial Supply Co,39190W
Gloucester City Council,23UE,Countryside Unit,LP201,Maint Of Grounds - General,3030,Self close gate spring,11/08/2014,387926,6.24,NET,Countrywide Farmers*,55687J
Gloucester City Council,23UE,Docks Complex - Catering Servs,RB110,Catering Provisions -Food,5110,food,11/08/2014,388561,57.37,NET,Janes Pantry,24500W
Gloucester City Council,23UE,Docks Complex - Catering Servs,RB110,Catering Provisions -Food,5110,food,11/08/2014,388804,386.86,NET,3663,55585U
Gloucester City Council,23UE,Docks Complex - Catering Servs,RB110,Catering Provisions -Food,5110,food,11/08/2014,388882,21.15,NET,Total Produce Gloucester,12645E
Gloucester City Council,23UE,Docks Complex - Catering Servs,RB110,Catering Provisions -Food,5110,food,11/08/2014,388883,48.83,NET,Total Produce Gloucester,12645E
Gloucester City Council,23UE,Docks Complex - Catering Servs,RB110,Catering Provisions -Food,5110,food,11/08/2014,388884,50.65,NET,Total Produce Gloucester,12645E
Gloucester City Council,23UE,Docks Complex - Catering Servs,RB110,Catering Provisions -Food,5110,food,11/08/2014,388885,44.3,NET,Total Produce Gloucester,12645E
Gloucester City Council,23UE,Docks Complex - Catering Servs,RB110,Catering Provisions -Food,5110,food,11/08/2014,388886,22.7,NET,Total Produce Gloucester,12645E
Gloucester City Council,23UE,Docks Complex - Catering Servs,RB110,Catering Provisions -Food,5110,food,11/08/2014,388887,420.63,NET,3663,55585U
Gloucester City Council,23UE,Docks Complex - Catering Servs,RB110,Catering Provisions -Food,5110,food,11/08/2014,388889,54.18,NET,Total Produce Gloucester,12645E
Gloucester City Council,23UE,Docks Complex - Catering Servs,RB110,Catering Provisions -Food,5110,food,11/08/2014,388890,34.72,NET,Total Produce Gloucester,12645E
Gloucester City Council,23UE,Docks Complex - Catering Servs,RB110,Catering Provisions -Food,5110,food,11/08/2014,388891,65.59,NET,Total Produce Gloucester,12645E
Gloucester City Council,23UE,Docks Complex - Catering Servs,RB110,Catering Provisions -Food,5110,food,11/08/2014,388892,36.89,NET,Total Produce Gloucester,12645E
Gloucester City Council,23UE,Docks Complex - Catering Servs,RB110,Catering Provisions -Food,5110,food,11/08/2014,388893,34.75,NET,Total Produce Gloucester,12645E
Gloucester City Council,23UE,Docks Complex - Catering Servs,RB110,Catering Provisions -Food,5110,food,11/08/2014,388894,101.43,NET,Total Produce Gloucester,12645E
Gloucester City Council,23UE,Docks Complex - Catering Servs,RB110,Catering Provisions -Food,5110,food,11/08/2014,388919,8.64,NET,Total Produce Gloucester,12645E
Gloucester City Council,23UE,Docks Complex - Catering Servs,RB110,Catering Provisions -Food,5110,food,11/08/2014,388920,4.32,NET,Total Produce Gloucester,12645E
Gloucester City Council,23UE,Docks Complex - Catering Servs,RB110,Catering Provisions -Food,5110,food,11/08/2014,388921,16.94,NET,Total Produce Gloucester,12645E
Gloucester City Council,23UE,Docks Complex - Catering Servs,RB110,Catering Provisions -Food,5110,food,11/08/2014,388922,30.03,NET,Total Produce Gloucester,12645E
Gloucester City Council,23UE,Docks Complex - Catering Servs,RB110,Catering Provisions -Food,5110,food,11/08/2014,388923,28.46,NET,Total Produce Gloucester,12645E
Gloucester City Council,23UE,Docks Complex - Catering Servs,RB110,Catering Provisions -Food,5110,food,11/08/2014,388924,9.28,NET,Total Produce Gloucester,12645E
Gloucester City Council,23UE,Docks Complex - Catering Servs,RB110,Catering Provisions -Food,5110,food,11/08/2014,388926,30.08,NET,Total Produce Gloucester,12645E
Gloucester City Council,23UE,Docks Complex - Catering Servs,RB110,Catering Provisions -Food,5110,food,11/08/2014,388927,8.64,NET,Total Produce Gloucester,12645E
Gloucester City Council,23UE,Docks Complex - Catering Servs,RB110,Catering Provisions -Food,5110,food,11/08/2014,388928,24.49,NET,Total Produce Gloucester,12645E
Gloucester City Council,23UE,Docks Complex - Catering Servs,RB110,Catering Provisions -Food,5110,food,11/08/2014,388929,48.81,NET,Total Produce Gloucester,12645E
Gloucester City Council,23UE,Docks Complex - Catering Servs,RB110,Catering Provisions -Food,5110,food,11/08/2014,388932,17.34,NET,Total Produce Gloucester,12645E
Gloucester City Council,23UE,Docks Complex - Catering Servs,RB110,Catering Provisions -Food,5110,food,11/08/2014,388936,45.18,NET,Total Produce Gloucester,12645E
Gloucester City Council,23UE,Docks Complex - Catering Servs,RB110,Catering Provisions -Food,5110,food,11/08/2014,388937,23.17,NET,Total Produce Gloucester,12645E
Gloucester City Council,23UE,Docks Complex - Catering Servs,RB110,Catering Provisions -Food,5110,food,11/08/2014,388938,72.38,NET,Total Produce Gloucester,12645E
Gloucester City Council,23UE,Docks Complex - Catering Servs,RB110,Catering Provisions -Food,5110,food,11/08/2014,388939,23.57,NET,Total Produce Gloucester,12645E
Gloucester City Council,23UE,Docks Complex - Catering Servs,RB110,Catering Provisions -Food,5110,food,11/08/2014,388940,11.92,NET,Total Produce Gloucester,12645E
Gloucester City Council,23UE,Docks Complex - Catering Servs,RB110,Catering Provisions -Food,5110,food,11/08/2014,388941,16.96,NET,Total Produce Gloucester,12645E
Gloucester City Council,23UE,Docks Complex - Catering Servs,RB110,Catering Provisions -Food,5110,food,11/08/2014,388942,33.87,NET,Total Produce Gloucester,12645E
Gloucester City Council,23UE,Docks Complex - Catering Servs,RB110,Catering Provisions -Food,5110,food,11/08/2014,388943,4.32,NET,Total Produce Gloucester,12645E
Gloucester City Council,23UE,Docks Complex - Catering Servs,RB110,Catering Provisions -Food,5110,food,11/08/2014,388944,29.72,NET,Total Produce Gloucester,12645E
Gloucester City Council,23UE,Docks Complex - Catering Servs,RB110,Catering Provisions -Food,5110,food,11/08/2014,388945,26.34,NET,Total Produce Gloucester,12645E
Gloucester City Council,23UE,Docks Complex - Catering Servs,RB110,Catering Provisions -Food,5110,food,11/08/2014,388946,13.65,NET,Total Produce Gloucester,12645E
Gloucester City Council,23UE,Docks Complex - Catering Servs,RB110,Catering Provisions -Food,5110,food,11/08/2014,388947,68.39,NET,Total Produce Gloucester,12645E
Gloucester City Council,23UE,Docks Complex - Catering Servs,RB110,Catering Provisions -Food,5110,food,11/08/2014,388948,19.26,NET,Total Produce Gloucester,12645E
Gloucester City Council,23UE,Docks Complex - Catering Servs,RB110,Catering Provisions -Food,5110,food,11/08/2014,388949,20.74,NET,Total Produce Gloucester,12645E
Gloucester City Council,23UE,Docks Complex - Catering Servs,RB110,Catering Provisions -Food,5110,food,11/08/2014,388950,16.82,NET,Total Produce Gloucester,12645E
Gloucester City Council,23UE,Docks Complex - Catering Servs,RB110,Catering Provisions -Food,5110,food,11/08/2014,388951,56.9,NET,Total Produce Gloucester,12645E
Gloucester City Council,23UE,Docks Complex - Catering Servs,RB110,Catering Provisions -Food,5110,food,11/08/2014,388952,41.13,NET,Total Produce Gloucester,12645E
Gloucester City Council,23UE,Docks Complex - Catering Servs,RB110,Catering Provisions -Food,5110,food,11/08/2014,388953,47.41,NET,Total Produce Gloucester,12645E
Gloucester City Council,23UE,Docks Complex - Catering Servs,RB110,Catering Provisions -Food,5110,food,11/08/2014,388954,10.3,NET,Total Produce Gloucester,12645E
Gloucester City Council,23UE,Dwelling Improvements,BY008,Contract Payments,0020,CAPITAL JUNE 2014,11/08/2014,387499,643669.65,CAP,Gloucester City Homes,05244T
Gloucester City Council,23UE,Emergency Out Of Hours Calls,RB301,Fees For Services Received,5350,JULY14 callouts,11/08/2014,388552,267.27,NET,Office Response,09439K
Gloucester City Council,23UE,Enhanced Lighting Schemes,PY118,Contract Payments,0020,St Nicholas Church survey,11/08/2014,388774,2485,CAP,Monument Geomatics,11065F
Gloucester City Council,23UE,Gloucester Guildhall,LA100,Security Services Fees,5351,SIA staff,11/08/2014,388914,327.25,NET,Nsgl Ltd,12539E
Gloucester City Council,23UE,Guildhall Bar And Caf�,LA210,Catering Provisions -Food,5110,food,11/08/2014,388865,48.41,NET,Woody's Fruit & Veg,11798L
Gloucester City Council,23UE,Guildhall Bar And Caf�,LA210,Catering Provisions -Liquor,5111,drink,11/08/2014,388912,890.02,NET,Cellar Supplies Cheltenham Ltd,01563L
Gloucester City Council,23UE,Guildhall Bar And Caf�,LA210,Catering Provisions -Liquor,5111,drink,11/08/2014,388913,40,NET,Gloucester Brewery,13373F
Gloucester City Council,23UE,REDACTED,REDACTED,REDACTED,REDACTED,REDACTED,11/08/2014,REDACTED,50,NET,REDACTED,REDACTED
Gloucester City Council,23UE,REDACTED,REDACTED,REDACTED,REDACTED,REDACTED,11/08/2014,REDACTED,252.76,NET,REDACTED,REDACTED
Gloucester City Council,23UE,Homelessness,CH120,Basic Pay - Temporary Staff,2751,temporary staff,11/08/2014,388787,795.13,NET,James Andrews Recruitment Solutions,13636W
Gloucester City Council,23UE,Homelessness,CH120,Basic Pay - Temporary Staff,2751,temporary staff,11/08/2014,388867,665,NET,Building Recruitment Company Ltd,55385E
Gloucester City Council,23UE,Homelessness,CH120,Basic Pay - Temporary Staff,2751,temporary staff,11/08/2014,388871,650.75,NET,Building Recruitment Company Ltd,55385E
Gloucester City Council,23UE,Homelessness,CH120,Basic Pay - Temporary Staff,2751,temporary staff,11/08/2014,388872,641.25,NET,Building Recruitment Company Ltd,55385E
Gloucester City Council,23UE,Homelessness,CH120,Basic Pay - Temporary Staff,2751,temporary staff,11/08/2014,388873,522.5,NET,Building Recruitment Company Ltd,55385E
Gloucester City Council,23UE,Homelessness Prevention,CH122,Fees For Services Received,5350,citizenview service,11/08/2014,388669,1712,NET,Experian Ltd,57191B
Gloucester City Council,23UE,Human Resources,EH100,Employee Related Advertising,2920,HR officer job advert,11/08/2014,388915,30,NET,Glosjobs.Co.Uk,12799Z
Gloucester City Council,23UE,Human Resources,EH100,Employee Related Advertising,2920,market officer job advert,11/08/2014,388916,30,NET,Glosjobs.Co.Uk,12799Z
Gloucester City Council,23UE,Internal Health & Safety,EH110,Other Minor Supplies Services,5590,biodip slides,11/08/2014,388918,23.9,NET,Dimanco Ltd,12396C
Gloucester City Council,23UE,Investment Property,RB500,Fire Alarm Maintenance,3053,Ranger Centre alarm monitoring,11/08/2014,388503,58.75,NET,Adt Fire & Security Plc,54086D
Gloucester City Council,23UE,Legal Services,RS200,Agency Fees,9105,temporary staff,11/08/2014,388767,1512.57,NET,Venn Group Ltd,04339P
Gloucester City Council,23UE,Legal Services,RS200,Agency Fees,9105,temporary staff,11/08/2014,388823,1401.93,NET,Venn Group Ltd,04339P
Gloucester City Council,23UE,Legal Services,RS200,Agency Fees,9105,temporary staff,11/08/2014,388822,1174.59,NET,Venn Group Ltd,04339P
Gloucester City Council,23UE,Legal Services,RS200,Asp Agency Staff Costs,2985,temporary staff,11/08/2014,388383,796.25,NET,Michael Page International Recruitment Ltd,06601P
Gloucester City Council,23UE,Legal Services,RS200,Basic Pay - Temporary Staff,2751,temporary staff,11/08/2014,388482,1077.06,NET,Venn Group Ltd,04339P
Gloucester City Council,23UE,Legal Services,RS200,Basic Pay - Temporary Staff,2751,temporary staff,11/08/2014,388481,1076.7,NET,Venn Group Ltd,04339P
Gloucester City Council,23UE,Legal Services,RS200,Basic Pay - Temporary Staff,2751,temporary staff,11/08/2014,388821,1085.67,NET,Venn Group Ltd,04339P
Gloucester City Council,23UE,Legal Services,RS200,Fees For Services Received,5350,professional fees,11/08/2014,388888,1803.5,NET,Dac Beachcroft Llp,12648Y
Gloucester City Council,23UE,Members Support,RC300,Members Training,5535,re course on 19/6/14,11/08/2014,388869,186.9,NET,Graham Russell Independent Local Govt Adviser,12953P
Gloucester City Council,23UE,Postal Services,RS120,Postages,5400,Post 18/07 - 24/07 2014,11/08/2014,388353,1137.21,NET,Royal Mail S.Wales & South West,35830S
Gloucester City Council,23UE,Shopmobility,PE200,Cleaning Materials,3600,AUG14 medical/sanitary waste service,11/08/2014,388572,7.11,NET,Ocs Group Uk Limited T/A Cannon,06506A
Gloucester City Council,23UE,Solace Project,FP843,Other Minor Supplies Services,5590,ASB officer salary JUL14,11/08/2014,388907,3250,NET,Gloucester City Homes,05244T
Gloucester City Council,23UE,Swrda Asset Transfer,RY184,Capital General Repairs & Main,0013,Ladybellegate St car park works,11/08/2014,388881,2160,CAP,Jrg Transport,12301T
Gloucester City Council,23UE,The Arbor,HC501,Catering Provisions -Food,5110,food,11/08/2014,388801,147.96,NET,3663,55585U
Gloucester City Council,23UE,The Arbor,HC501,Catering Provisions -Food,5110,food,11/08/2014,388802,77.5,NET,3663,55585U
Gloucester City Council,23UE,The Arbor,HC501,Catering Provisions -Food,5110,food,11/08/2014,388803,99.77,NET,3663,55585U
Gloucester City Council,23UE,The Arbor,HC501,Catering Provisions -Food,5110,food,11/08/2014,388895,13.3,NET,Total Produce Gloucester,12645E
Gloucester City Council,23UE,The Arbor,HC501,Catering Provisions -Food,5110,food,11/08/2014,388900,15.74,NET,Total Produce Gloucester,12645E
Gloucester City Council,23UE,Training Schemes,ET100,Vocational Training,2970,NVQ assessments,11/08/2014,388868,1460,NET,The Gold Standard,56141C
Gloucester City Council,23UE,Treasury Management,VR110,Brokerage Fees,5951,BROKERS FEE,11/08/2014,388711,382.19,NET,Martin Brokers (Uk) Plc,51416J
Gloucester City Council,23UE,Ugly Structures,GY010,Contract Payments,0020,Longsmith St car park survey,11/08/2014,388773,925,CAP,Monument Geomatics,11065F
Gloucester City Council,23UE,Utilities,PT502,Electricity Supply,3110,UTILITIES TO AUG 2014,11/08/2014,388712,1748.4,NET,West Mercia Energy,11669Z
Gloucester City Council,23UE,Utilities,PT502,Gas Supply,3100,UTILITIES TO AUG 2014,11/08/2014,388712,143916.93,NET,West Mercia Energy,11669Z
Gloucester City Council,23UE,REDACTED,REDACTED,REDACTED,REDACTED,REDACTED,12/08/2014,REDACTED,230,NET,REDACTED,REDACTED
Gloucester City Council,23UE,REDACTED,REDACTED,REDACTED,REDACTED,REDACTED,12/08/2014,REDACTED,117,NET,REDACTED,REDACTED
Gloucester City Council,23UE,REDACTED,REDACTED,REDACTED,REDACTED,REDACTED,12/08/2014,REDACTED,40,NET,REDACTED,REDACTED
Gloucester City Council,23UE,REDACTED,REDACTED,REDACTED,REDACTED,REDACTED,12/08/2014,REDACTED,342.5,NET,REDACTED,REDACTED
Gloucester City Council,23UE,REDACTED,REDACTED,REDACTED,REDACTED,REDACTED,12/08/2014,REDACTED,24,NET,REDACTED,REDACTED
Gloucester City Council,23UE,City Museum And Art Gallery,LM200,Exhibits And Collections,5038,Graphics Panels for 'wow' exhibition,12/08/2014,389047,1015,NET,Alpha Colour Printers Ltd,00945B
Gloucester City Council,23UE,REDACTED,REDACTED,REDACTED,REDACTED,REDACTED,12/08/2014,REDACTED,70,NET,REDACTED,REDACTED
Gloucester City Council,23UE,Client Revs & Bens Contract,RT240,Fees For Services Received,5350,bailiff fees,12/08/2014,389071,49.5,NET,Assevarate Ltd,11749A
Gloucester City Council,23UE,Corporate Reporting /Financing,RC504,Fees For Services Received,5350,Childcare Vouchers August 2014,12/08/2014,389065,34.05,NET,Wider Plan Ltd ( Formerly Kiddivouchers),07893B
Gloucester City Council,23UE,Council Streetcare Team,HI101,Maint Of Grounds - General,3030,spray japanese knotweed,12/08/2014,388820,25,NET,Greenfields Garden Services Ltd,48130G
Gloucester City Council,23UE,Docks Complex - Telephones,RB120,Lease Lines,5411,CALLS JUNE 2014,12/08/2014,387497,3948.11,NET,Gamma Business Communications,10260A
Gloucester City Council,23UE,Dwelling Improvements,BY008,Contract Payments,0020,JUL14 capital fees,12/08/2014,388797,494756.52,CAP,Gloucester City Homes,05244T
Gloucester City Council,23UE,Folk Museum,LM210,Publications For Sale,5064,Marble games counter display,12/08/2014,389057,48,NET,House Of Marbles,04546G
Gloucester City Council,23UE,Glevum Way Play Area,LY111,Contract Payments,0020,Mead Road fencing,12/08/2014,388570,1412,CAP,Greenfields Garden Services Ltd,48130G
Gloucester City Council,23UE,Grants To Voluntary Sector,FG100,Funding Vol&Com Grps-Grants,7100C,community grant 2014-15,12/08/2014,388810,1565,NET,Friends Of Saintbridge Pond,04367J
Gloucester City Council,23UE,Hillfield Gardens S106,LY112,Contract Payments,0020,Hillfield Gardens works,12/08/2014,388587,3695,CAP,Greenfields Garden Services Ltd,48130G
Gloucester City Council,23UE,Homelessness,CH120,Fees For Services Received,5350,medical reports,12/08/2014,388878,70,NET,Now Medical,03468L
Gloucester City Council,23UE,Internal Audit,RT300,Basic Pay - Temporary Staff,2751,E Field w/e 1/8/14,12/08/2014,388798,986,NET,Robert Half Ltd,03959K
Gloucester City Council,23UE,Investment Property,RB500,Lift Maintenance,3051,Guildhall mobility lift service,12/08/2014,388908,298.54,NET,Pickerings Europe Ltd*,58816U
Gloucester City Council,23UE,Legal Services,RS200,Basic Pay -Admin /Prof Staff,2601,temporary staff,12/08/2014,388151,615.24,NET,Sellick Partnership Group Ltd,11057C
Gloucester City Council,23UE,Nms Contract,HI102,Contracted Services,6970,1/12th July 14,12/08/2014,387153,490613.67,NET,Enterprise (Aol) Ltd,06695G
Gloucester City Council,23UE,REDACTED,REDACTED,REDACTED,REDACTED,REDACTED,12/08/2014,REDACTED,130,NET,REDACTED,REDACTED
Gloucester City Council,23UE,Parks Contract Management,LP100,Maint Of Grounds - General,3030,Mead Road works,12/08/2014,388582,1571,NET,Greenfields Garden Services Ltd,48130G
Gloucester City Council,23UE,Registration Of Electors,RS400,Fees For Services Received,5350,Bus Ticket Campaign,12/08/2014,389070,575,NET,Cheltenham Borough Council,04176B
Gloucester City Council,23UE,Registration Of Electors,RS400,Postages,5400,Business Mail May 2014,12/08/2014,389073,608.05,NET,Royal Mail S.Wales & South West,35830S
Gloucester City Council,23UE,Rehousing,CH111,Basic Pay - Temporary Staff,2751,temporary staff,12/08/2014,388268,1344.25,NET,Building Recruitment Company Ltd,55385E
Gloucester City Council,23UE,Rehousing,CH111,Basic Pay - Temporary Staff,2751,temporary staff,12/08/2014,388874,620.5,NET,Building Recruitment Company Ltd,55385E
Gloucester City Council,23UE,Rehousing,CH111,Basic Pay - Temporary Staff,2751,temporary staff,12/08/2014,388875,568.75,NET,Building Recruitment Company Ltd,55385E
Gloucester City Council,23UE,Rehousing,CH111,Basic Pay - Temporary Staff,2751,temporary staff,12/08/2014,388876,703,NET,Building Recruitment Company Ltd,55385E
Gloucester City Council,23UE,Rehousing,CH111,Basic Pay - Temporary Staff,2751,temporary staff,12/08/2014,388877,636.5,NET,Building Recruitment Company Ltd,55385E
Gloucester City Council,23UE,Rehousing,CH111,Basic Pay - Temporary Staff,2751,temporary staff w/e 13/7/14,12/08/2014,388105,1159,NET,Building Recruitment Company Ltd,55385E
Gloucester City Council,23UE,Rehousing,CH111,Basic Pay - Temporary Staff,2751,temp staff w/e 27/7/14,12/08/2014,388576,1219.5,NET,Building Recruitment Company Ltd,55385E
Gloucester City Council,23UE,Tic Theatre Ticket Sales,LT107,Materials For Sale,5080,Ticket Sales for Merchant of Venice,12/08/2014,388981,240,NET,Rain Or Shine Theatre Co Ltd,58757J
Gloucester City Council,23UE,Tic Theatre Ticket Sales,LT107,Materials For Sale,5080,Ticket Sales for Treasure Island,12/08/2014,388980,54,NET,Rain Or Shine Theatre Co Ltd,58757J
Gloucester City Council,23UE,Tic Theatre Ticket Sales,LT107,Sale Of Goods And Services,9230,Ticket Sales for Merchant of Venice,12/08/2014,388981,-20,NET,Rain Or Shine Theatre Co Ltd,58757J
Gloucester City Council,23UE,Tic Theatre Ticket Sales,LT107,Sale Of Goods And Services,9230,Ticket Sales for Treasure Island,12/08/2014,388980,-4.5,NET,Rain Or Shine Theatre Co Ltd,58757J
Gloucester City Council,23UE,Tic Trading,LT110,Publications For Sale,5064,Leaflets,12/08/2014,389064,17.5,NET,Windcross Public Paths Project,00117A
Gloucester City Council,23UE,Westgate Leisure Area S106,LY155,Contract Payments,0020,Westgate car park survey,12/08/2014,388925,948.1,CAP,Geotechnical Engingeering Ltd,17300W
Gloucester City Council,23UE,REDACTED,REDACTED,REDACTED,REDACTED,REDACTED,12/08/2014,REDACTED,318.75,NET,REDACTED,REDACTED
Gloucester City Council,23UE,REDACTED,REDACTED,REDACTED,REDACTED,REDACTED,12/08/2014,REDACTED,595,NET,REDACTED,REDACTED
Gloucester City Council,23UE,Business Transformation & Tech,RT700,Computer Consumables,5422,Lead USB3.0,13/08/2014,385913,33.25,NET,Cpc,52980M
Gloucester City Council,23UE,Car Parks,GY002,Contract Payments,0020,5% Retention due: invoice 3259,13/08/2014,389116,335.9,CAP,Davey's Building Maintenance,57010K
Gloucester City Council,23UE,City Museum Catering,LM202,Catering Provisions -Food,5110,coffee,13/08/2014,388762,99.45,NET,James Gourmet Coffee Co.,55049A
Gloucester City Council,23UE,Civica Admin Charges,RT105,Postages,5400,a/c 0870585007 revenues,13/08/2014,388812,1222.85,NET,Royal Mail S.Wales & South West,35830S
Gloucester City Council,23UE,Civic Admin And Hospitality,RC210,Hire Of Taxis,4053,Hours July 2014,13/08/2014,389035,512.5,NET,REDACTED,REDACTED
Gloucester City Council,23UE,Community Safety Projects,FP500,Basic Pay - Temporary Staff,2751,temporary staff,13/08/2014,389134,484.8,NET,Travail Employment Ltd,49371W
Gloucester City Council,23UE,Community Safety Projects,FP500,Other Minor Supplies Services,5590,Conference 2014: 315,13/08/2014,389045,498,NET,National Community Safety Network,53042K
Gloucester City Council,23UE,Corporate Reporting /Financing,RC504,Audit Fees,5383,1st & 2nd installment 2014/15 grants,13/08/2014,388757,4695,NET,Kpmg,06498X
Gloucester City Council,23UE,Corporate Reporting /Financing,RC504,Audit Fees,5383,1st & 2nd instalment of 2014/15 audit,13/08/2014,388756,41850,NET,Kpmg,06498X
Gloucester City Council,23UE,Council Streetcare Team,HI101,Other Minor Supplies Services,5590,Keys,13/08/2014,389128,47.5,NET,London Tools Ltd,13538X
Gloucester City Council,23UE,Countryside Unit,LP201,Tyres,4014,Environmental Disposal,13/08/2014,389055,541.93,NET,A T S Euromaster Ltd,01860B
Gloucester City Council,23UE,Financial Services,RT200,Planning Direct Action,5347,temporary staff,13/08/2014,388909,2175,NET,Robert Half Ltd,03959K
Gloucester City Council,23UE,Financial Services,RT200,Training Course Fees,5367,Level 4 AAT course,13/08/2014,389129,1987,NET,Gloucestershire College,06835B
Gloucester City Council,23UE,REDACTED,REDACTED,REDACTED,REDACTED,REDACTED,13/08/2014,REDACTED,1000,NET,REDACTED,REDACTED
Gloucester City Council,23UE,REDACTED,REDACTED,REDACTED,REDACTED,REDACTED,13/08/2014,REDACTED,2244,NET,REDACTED,REDACTED
Gloucester City Council,23UE,Grants To Voluntary Sector,FG100,Funding Vol&Com Grps-Grants,7100C,Grant payment 2014/15,13/08/2014,389037,440,NET,Saintbridge Allotments Garden Association,09542S
Gloucester City Council,23UE,Grants To Voluntary Sector,FG100,Funding Vol&Com Grps-Grants,7100C,Grant payment 2014/15,13/08/2014,389040,600,NET,Black Elders Day Centre,05309P
Gloucester City Council,23UE,Grants To Voluntary Sector,FG100,Funding Vol&Com Grps-Grants,7100C,Grant Payment 2014/15,13/08/2014,389038,3000,NET,Gloucester Street Pastors,09833B
Gloucester City Council,23UE,Grants To Voluntary Sector,FG100,Funding Vol&Com Grps-Grants,7100C,Grant Payment 2014/15,13/08/2014,389039,1000,NET,Matson & Robinswood Neighbourhood Partnership,28655Z
Gloucester City Council,23UE,REDACTED,REDACTED,REDACTED,REDACTED,REDACTED,13/08/2014,REDACTED,21076.75,NET,REDACTED,REDACTED
Gloucester City Council,23UE,Grants To Voluntary Sector,FG100,Funding Vol&Com Grps-Sla'S,7100B,"Advice Centres Fund, 1 of 4 payments",13/08/2014,389145,25755,NET,Gloucester Law Centre,18157R
Gloucester City Council,23UE,Grants To Voluntary Sector,FG100,Funding Vol&Com Grps-Sla'S,7100B,"SLA, Advice Centres paymet 1 of 4",13/08/2014,389147,508.75,NET,Garas,57701Y
Gloucester City Council,23UE,Green Transport Policy,PJ130,Electric Car Charge,4030,Smartcar lease,13/08/2014,388553,287.35,NET,Daimler Fleet Management,07828N
Gloucester City Council,23UE,Guildhall Bar And Caf�,LA210,Catering Provisions -Food,5110,food,13/08/2014,388903,146.52,NET,Woodward Foodservice,10714F
Gloucester City Council,23UE,Guildhall Bar And Caf�,LA210,Catering Provisions -Food,5110,Milk,13/08/2014,386962,4.96,NET,Total Produce Gloucester,12645E
Gloucester City Council,23UE,REDACTED,REDACTED,REDACTED,REDACTED,REDACTED,13/08/2014,REDACTED,484.6,NET,REDACTED,REDACTED
Gloucester City Council,23UE,Homelessness,CH120,Rent In Advance,5516,REDACTED,13/08/2014,389141,364.6,NET,Donaldson & Newman Ltd,66678G
Gloucester City Council,23UE,Homelessness,CH120,Rent In Advance,5516,REDACTED,13/08/2014,389140,484.6,NET,Alex Clark Lettings,13439A
Gloucester City Council,23UE,REDACTED,REDACTED,REDACTED,REDACTED,REDACTED,13/08/2014,REDACTED,461.53,NET,REDACTED,REDACTED
Gloucester City Council,23UE,Homelessness Prevention,CH122,Fees For Services Received,5350,REDACTED,13/08/2014,389141,395,NET,Donaldson & Newman Ltd,66678G
Gloucester City Council,23UE,Homelessness Prevention,CH122,Fees For Services Received,5350,REDACTED,13/08/2014,389140,525,NET,Alex Clark Lettings,13439A
Gloucester City Council,23UE,REDACTED,REDACTED,REDACTED,REDACTED,REDACTED,13/08/2014,REDACTED,500,NET,REDACTED,REDACTED
Gloucester City Council,23UE,Investment Property,RB500,Fees For Services Received,5350,REDACTED,13/08/2014,389143,60,NET,Hmcts,10675P
Gloucester City Council,23UE,Investment Property,RB500,Fees For Services Received,5350,REDACTED,13/08/2014,389144,60,NET,Hmcts,10690U
Gloucester City Council,23UE,Investment Property,RB500,General Repair/Maint Buildings,3000,Unblock toilets 29/07/2014 Guildhall,13/08/2014,389058,80,NET,Three Counties Drain Service,44033V
Gloucester City Council,23UE,REDACTED,REDACTED,REDACTED,REDACTED,REDACTED,13/08/2014,REDACTED,500,NET,REDACTED,REDACTED
Gloucester City Council,23UE,Members Ict Provision,RY577,It Software,0057,Modern.gov ipad app year supply 14/15,13/08/2014,389117,1000,CAP,Modern Mindset Ltd,11065J
Gloucester City Council,23UE,Summer Festival,LT300,Fees For Services Received,5350,"Annual Wood Shield , engraving",13/08/2014,389118,124.83,NET,Macron Store Gloucester,12060S
Gloucester City Council,23UE,Tic Theatre Ticket Sales,LT107,Materials For Sale,5080,Tickets sold Jenny Wren 'Oliver Twist',13/08/2014,389124,259,NET,Pied Piper Appeal,02491B
Gloucester City Council,23UE,Tic Theatre Ticket Sales,LT107,Sale Of Goods And Services,9230,Tickets sold Jenny Wren 'Oliver Twist',13/08/2014,389124,-10.79,NET,Pied Piper Appeal,02491B
Gloucester City Council,23UE,Blackfriars,LA609,Hire Of Equipment,5020,Lease Rental- Hand Drier,14/08/2014,384470,52.65,NET,Wessex Products (Leasing) Ltd,03684C
Gloucester City Council,23UE,Blackfriars,LA609,Maintenance Of Equipment,5030,"Cable Covers, Lighting System etc",14/08/2014,387588,37.9,NET,Cpc,52980M
Gloucester City Council,23UE,Blackfriars,LA609,Operational Equipment <5000,5012,"Cable Covers, Lighting System etc",14/08/2014,387588,149.43,NET,Cpc,52980M
Gloucester City Council,23UE,Building Control,PT400,Basic Pay - Temporary Staff,2751,temporary staff,14/08/2014,388126,1383.7,NET,The Oyster Partnership Limited,14900T
Gloucester City Council,23UE,Building Control,PT400,Basic Pay - Temporary Staff,2751,temporary staff,14/08/2014,386990,1357.85,NET,The Oyster Partnership Limited,14900T
Gloucester City Council,23UE,Building Control,PT400,Basic Pay - Temporary Staff,2751,temporary staff,14/08/2014,388253,1372.15,NET,The Oyster Partnership Limited,14900T
Gloucester City Council,23UE,Building Control,PT400,Basic Pay - Temporary Staff,2751,temporary staff,14/08/2014,386832,1366.65,NET,The Oyster Partnership Limited,14900T
Gloucester City Council,23UE,Building Control,PT400,Basic Pay - Temporary Staff,2751,temporary staff,14/08/2014,387914,7500,NET,Brg Interim Solutions,14065L
Gloucester City Council,23UE,Building Control,PT400,Basic Pay - Temporary Staff,2751,temporary staff,14/08/2014,387255,2500,NET,Brg Interim Solutions,14065L
Gloucester City Council,23UE,Building Control,PT400,Car Allows -Cas. User Mileage,4102,temporary staff,14/08/2014,387913,228.8,NET,Brg Interim Solutions,14065L
Gloucester City Council,23UE,Business Transformation & Tech,RT700,Computer Hardware Maintenance,5426,Rental of Scanner,14/08/2014,387633,275,NET,Stanford Marsh Ltd*,51139M
Gloucester City Council,23UE,Business Transformation & Tech,RT700,Computer Software Maintenance,5427,LASERFORM LICENCE RENEWAL,14/08/2014,388115,255.79,NET,Advanced Legal Solutions Ltd,09299B
Gloucester City Council,23UE,Cemeteries,HC300,Operational Materials,5070,toilet rolls,14/08/2014,388480,66,NET,Safpro Industrial Supply Co,39190W
Gloucester City Council,23UE,Cemeteries,HC300,Operational Materials,5070,Uniforms,14/08/2014,389060,125.28,NET,Safpro Industrial Supply Co,39190W
Gloucester City Council,23UE,Client Revs & Bens Contract,RT240,Bailiffs Fees,5368,VAT on statutory fees,14/08/2014,389059,118.9,NET,Bristow & Sutor,05450M
Gloucester City Council,23UE,Crematorium,HC200,Cleaning Materials,3600,Monthly Service,14/08/2014,389051,16.78,NET,Minster Cleaning Services,02158R
Gloucester City Council,23UE,Crematorium,HC200,Clothing,5200,Uniforms,14/08/2014,389060,160.96,NET,Safpro Industrial Supply Co,39190W
Gloucester City Council,23UE,Crematorium,HC200,Repair/Maint Of Fixed Plant,3006,Charge for boiler clean,14/08/2014,389122,2125.05,NET,Facultatieve Technologies Ltd,51210H
Gloucester City Council,23UE,Crematorium,HC200,Uniforms,5201,Uniforms,14/08/2014,389060,128.92,NET,Safpro Industrial Supply Co,39190W
Gloucester City Council,23UE,Disabled Facilities Grants,CY013,Disabled Facility Grants,0074,MDF5068,14/08/2014,389209,4849.28,CAP,Mears Home Improvement Ltd,00096G
Gloucester City Council,23UE,Docks Complex - Services,RB100,Repair/Maint Of Fixed Plant,3006,Maintenance of Equipment,14/08/2014,388239,556.21,NET,Gea Denco Ltd,57271C
Gloucester City Council,23UE,Gloucester Guildhall,LA100,Licences,5703,Radio Licence fees,14/08/2014,389075,150,NET,Ofcom,02769C
Gloucester City Council,23UE,Gloucester Guildhall,LA100,Licences,5703,TV LICENSING 14/15,14/08/2014,389080,145.5,NET,Tv Licensing,32680R
Gloucester City Council,23UE,REDACTED,REDACTED,REDACTED,REDACTED,REDACTED,14/08/2014,REDACTED,395,NET,REDACTED,REDACTED
Gloucester City Council,23UE,Homelessness,CH120,Rent In Advance,5516,REDACTED,14/08/2014,389210,484.6,NET,Surelet,06858N
Gloucester City Council,23UE,REDACTED,REDACTED,REDACTED,REDACTED,REDACTED,14/08/2014,REDACTED,364.6,NET,REDACTED,REDACTED
Gloucester City Council,23UE,Homelessness Prevention,CH122,Fees For Services Received,5350,REDACTED,14/08/2014,389210,525,NET,Surelet,06858N
Gloucester City Council,23UE,Housing Strategy & Enabling,CH110,Advertising And Publicity,5702,Advertisements 07/08/2014,14/08/2014,389033,116.2,NET,Local World Ltd,08556P
Gloucester City Council,23UE,Legal Services,RS200,Basic Pay -Admin /Prof Staff,2601,temporary staff,14/08/2014,388397,628.56,NET,Sellick Partnership Group Ltd,11057C
Gloucester City Council,23UE,REDACTED,REDACTED,REDACTED,REDACTED,REDACTED,14/08/2014,REDACTED,45,NET,REDACTED,REDACTED
Gloucester City Council,23UE,REDACTED,REDACTED,REDACTED,REDACTED,REDACTED,14/08/2014,REDACTED,-4,NET,REDACTED,REDACTED
Gloucester City Council,23UE,Tourism Marketing,LT100,Exhibits And Collections,5038,GLOU260TWIST 260*120*340mm,14/08/2014,389062,918,NET,Fleet Promotional Packaging,04259N
Gloucester City Council,23UE,REDACTED,REDACTED,REDACTED,REDACTED,REDACTED,14/08/2014,REDACTED,112.2,NET,REDACTED,REDACTED
Gloucester City Council,23UE,REDACTED,REDACTED,REDACTED,REDACTED,REDACTED,14/08/2014,REDACTED,770.95,NET,REDACTED,REDACTED
Gloucester City Council,23UE,REDACTED,REDACTED,REDACTED,REDACTED,REDACTED,14/08/2014,REDACTED,225.25,NET,REDACTED,REDACTED
Gloucester City Council,23UE,REDACTED,REDACTED,REDACTED,REDACTED,REDACTED,14/08/2014,REDACTED,102,NET,REDACTED,REDACTED
Gloucester City Council,23UE,REDACTED,REDACTED,REDACTED,REDACTED,REDACTED,14/08/2014,REDACTED,306,NET,REDACTED,REDACTED
Gloucester City Council,23UE,REDACTED,REDACTED,REDACTED,REDACTED,REDACTED,14/08/2014,REDACTED,201.45,NET,REDACTED,REDACTED
Gloucester City Council,23UE,REDACTED,REDACTED,REDACTED,REDACTED,REDACTED,14/08/2014,REDACTED,484.6,NET,REDACTED,REDACTED
Gloucester City Council,23UE,REDACTED,REDACTED,REDACTED,REDACTED,REDACTED,14/08/2014,REDACTED,525,NET,REDACTED,REDACTED
Gloucester City Council,23UE,Cemeteries,HC300,Other Minor Supplies Services,5590,Stakes,15/08/2014,389139,353.34,NET,Millington & Ramstedt Ltd,29815S
Gloucester City Council,23UE,Cemeteries,HC300,Trade Refuse Tipping Fees,6297,skip exchange,15/08/2014,388672,510,NET,Allstone Sand & Gravel Aggregates Ltd,00940M
Gloucester City Council,23UE,City Museum And Art Gallery,LM200,Exhibits And Collections,5038,Daylight High Output,15/08/2014,389123,114.75,NET,Lyco Direct Limited,51364C
Gloucester City Council,23UE,Crematorium,HC200,Maint Of Grounds - General,3030,Stakes,15/08/2014,389139,88.49,NET,Millington & Ramstedt Ltd,29815S
Gloucester City Council,23UE,REDACTED,REDACTED,REDACTED,REDACTED,REDACTED,15/08/2014,REDACTED,98,NET,REDACTED,REDACTED
Gloucester City Council,23UE,Docks Complex - Services,RB100,Cleaning Materials,3600,cleaning goods,15/08/2014,388494,95.86,NET,Core Hygiene Ltd,03885P
Gloucester City Council,23UE,Docks Complex - Services,RB100,Cleaning Materials,3600,cleaning materials,15/08/2014,388486,171.96,NET,Core Hygiene Ltd,03885P
Gloucester City Council,23UE,Docks Complex - Services,RB100,Cleaning Materials,3600,toilet rolls,15/08/2014,388755,46.14,NET,Core Hygiene Ltd,03885P
Gloucester City Council,23UE,Docks Complex - Telephones,RB120,Fees For Services Received,5350,Phone Call Charges May 2014,15/08/2014,389133,2246.28,NET,Gamma Business Communications,10260A
Gloucester City Council,23UE,Economic Development,FP300,Other Minor Supplies Services,5590,Coach monthly feature - 1/4 page colour,15/08/2014,382474,200,NET,Expo Management Ltd,14164H
Gloucester City Council,23UE,Financial Services,RT200,Computer Software Maintenance,5427,fixed asset consultancy,15/08/2014,388590,1700,NET,Advanced Business Solutions,06072N
Gloucester City Council,23UE,Guildhall Bar And Caf�,LA210,Catering Provisions -Liquor,5111,Drinks,15/08/2014,386708,1220.21,NET,Cellar Supplies Cheltenham Ltd,01563L
Gloucester City Council,23UE,REDACTED,REDACTED,REDACTED,REDACTED,REDACTED,15/08/2014,REDACTED,270,NET,REDACTED,REDACTED
Gloucester City Council,23UE,Legal Services,RS200,Agency Fees,9105,temporary staff,15/08/2014,388377,482.69,NET,Premiere Employment Ltd,55468Z
Gloucester City Council,23UE,The Arbor,HC501,Catering Provisions -Food,5110,food,15/08/2014,388935,35.85,NET,Total Produce Gloucester,12645E
Gloucester City Council,23UE,Training Schemes,ET100,Fees For Services Received,5350,Apprenticeship Fees,15/08/2014,389130,1730,NET,The Gold Standard,56141C
Gloucester City Council,23UE,Allotments,HI104,Water Supply,3400,ACCT 7890105225,18/08/2014,389286,4154.21,NET,Severn Trent Water Ltd,02417P
Gloucester City Council,23UE,Bus Station,RB400,Water Supply,3400,ACCT 7890105225,18/08/2014,389286,168.61,NET,Severn Trent Water Ltd,02417P
Gloucester City Council,23UE,Cemeteries,HC300,Other Minor Supplies Services,5590,"Diamond Blade, water container",18/08/2014,389293,98,NET,Ermin Plant Hire & Services Ltd,14150V
Gloucester City Council,23UE,Cemeteries,HC300,Purch Vehicles/M. Plant <5000,4000,Hand Held Blowers,18/08/2014,389274,398,NET,Frank Sutton Ltd - Agric'L Engineer,42875D
Gloucester City Council,23UE,City Museum And Art Gallery,LM200,Water Supply,3400,ACCT 7890105225,18/08/2014,389286,702.89,NET,Severn Trent Water Ltd,02417P
Gloucester City Council,23UE,Council Streetcare Team,HI101,Water Supply,3400,ACCT 7890105225,18/08/2014,389286,192.73,NET,Severn Trent Water Ltd,02417P
Gloucester City Council,23UE,Countryside Unit,LP201,Water Supply,3400,ACCT 7890105225,18/08/2014,389286,-54.74,NET,Severn Trent Water Ltd,02417P
Gloucester City Council,23UE,Crematorium,HC200,Water Supply,3400,ACCT 7890105225,18/08/2014,389286,2088.17,NET,Severn Trent Water Ltd,02417P
Gloucester City Council,23UE,Docks Complex - Services,RB100,Cleaning Materials,3600,Cleaning Materials,18/08/2014,388384,88.34,NET,Core Hygiene Ltd,03885P
Gloucester City Council,23UE,Docks Complex - Services,RB100,General Repair/Maint Buildings,3000,Reception fan coil units,18/08/2014,388399,340.44,NET,Hewer Facilities Mgt Ltd,05232A
Gloucester City Council,23UE,Docks Complex - Services,RB100,General Repair/Maint Buildings,3000,Repairs to mechanical code locks,18/08/2014,389072,87.5,NET,Severnside Security Ltd,14661M
Gloucester City Council,23UE,Docks Complex - Services,RB100,General Repair/Maint Buildings,3000,Replace Handles,18/08/2014,389271,185.5,NET,Severnside Security Ltd,14661M
Gloucester City Council,23UE,Docks Complex - Services,RB100,Operational Equipment <5000,5012,6 boxes of cups,18/08/2014,388573,180,NET,Greenworks Solutions Ltd,05909G
Gloucester City Council,23UE,Docks Complex - Services,RB100,Recycling,3631,Recycling July 2014,18/08/2014,389278,73.2,NET,Printwaste Recycling,57114W
Gloucester City Council,23UE,Docks Complex - Services,RB100,Recycling,3631,Shredding July 2014,18/08/2014,389277,408.3,NET,Printwaste Recycling,57114W
Gloucester City Council,23UE,Docks Complex - Services,RB100,Water Supply,3400,ACCT 7890105225,18/08/2014,389286,2573.41,NET,Severn Trent Water Ltd,02417P
Gloucester City Council,23UE,Events,LT410,Arts Grants,7113,Contribution towards JOLT international,18/08/2014,389283,2000,NET,Theatre Gloucestershire,14640W
Gloucester City Council,23UE,Folk Museum,LM210,Water Supply,3400,ACCT 7890105225,18/08/2014,389286,581.31,NET,Severn Trent Water Ltd,02417P
Gloucester City Council,23UE,Gl1 Pool Air Handling System,LY152,Contract Payments,0020,GL1 POOL VENTILATION,18/08/2014,388100,72789.23,CAP,Esg Pool Ventilation Ltd,14715P
Gloucester City Council,23UE,Grants To Voluntary Sector,FG100,Funding Vol&Com Grps-Grants,7100C,"Grant Payment 1, 2014/15",18/08/2014,389043,1183,NET,Barnwood Community Partnership,14234M
Gloucester City Council,23UE,Guildhall Events,LA200,Water Supply,3400,ACCT 7890105225,18/08/2014,389286,405.44,NET,Severn Trent Water Ltd,02417P
Gloucester City Council,23UE,Investment Property,RB500,Lift Maintenance,3051,Work 17/07/2014 Guildhall,18/08/2014,389288,936.02,NET,Pickerings Europe Ltd*,58816U
Gloucester City Council,23UE,Investment Property,RB500,Water Supply,3400,ACCT 7890105225,18/08/2014,389286,300.42,NET,Severn Trent Water Ltd,02417P
Gloucester City Council,23UE,Legal Services,RS200,Agency Fees,9105,temporary staff,18/08/2014,389069,487.29,NET,Premiere Employment Ltd,55468Z
Gloucester City Council,23UE,Legal Services,RS200,Agency Fees,9105,temporary staff,18/08/2014,388752,395.1,NET,Premiere Employment Ltd,55468Z
Gloucester City Council,23UE,Off Street Car Parks,PP110,Water Supply,3400,ACCT 7890105225,18/08/2014,389286,3451.33,NET,Severn Trent Water Ltd,02417P
Gloucester City Council,23UE,Public Conveniences (Client),HI400,Water Supply,3400,ACCT 7890105225,18/08/2014,389286,1947.66,NET,Severn Trent Water Ltd,02417P
Gloucester City Council,23UE,Public Health,HD200,Other Minor Supplies Services,5590,Hire of facilities 24/04/2014,18/08/2014,389259,30,NET,Podsmead Community Association,03240W
Gloucester City Council,23UE,Safer Stronger Communities,FP841,Other Minor Supplies Services,5590,Phone Cables,18/08/2014,389279,460,NET,Solon Security Ltd,02010B
Gloucester City Council,23UE,Stationery Services,RS150,Stationery,5302,Stationary,18/08/2014,389256,39.91,NET,Lyreco Uk Ltd,11746G
Gloucester City Council,23UE,Stationery Services,RS150,Stationery,5302,Stationary,18/08/2014,389257,1,NET,Lyreco Uk Ltd,11746G
Gloucester City Council,23UE,Summer Festival,LT300,Fees For Services Received,5350,Medical Cover 26/07/2014,18/08/2014,389269,580,NET,St John Ambulance*,03597Y
Gloucester City Council,23UE,Tourism Marketing,LT100,Other Minor Supplies Services,5590,Water Cooler,18/08/2014,389254,153,NET,Greenworks Solutions Ltd,05909G
Gloucester City Council,23UE,Tourism Marketing,LT100,Water Supply,3400,ACCT 7890105225,18/08/2014,389286,96.54,NET,Severn Trent Water Ltd,02417P
Gloucester City Council,23UE,Utilities,PT502,Electricity Supply,3110,UTILITIES TO JULY 2014,18/08/2014,388713,12.01,NET,West Mercia Energy,11669Z
Gloucester City Council,23UE,Utilities,PT502,Gas Supply,3100,UTILITIES TO JULY 2014,18/08/2014,388713,5374.11,NET,West Mercia Energy,11669Z
Gloucester City Council,23UE,Civil Parking Enforcement,PT741,Basic Pay - Temporary Staff,2751,temporary staff,19/08/2014,389285,2400,NET,Unity Recruitment,14857S
Gloucester City Council,23UE,Civil Parking Enforcement,PT741,Basic Pay - Temporary Staff,2751,temporary staff,19/08/2014,388690,2400,NET,Unity Recruitment,14857S
Gloucester City Council,23UE,Client Revs & Bens Contract,RT240,Computer Software Maintenance,5427,ATLAS change of circumstance notificatio,19/08/2014,389253,350,NET,Civica Uk Ltd,10841X
Gloucester City Council,23UE,Client Revs & Bens Contract,RT240,Computer Software Maintenance,5427,Tranche1 IT Costs May 2014,19/08/2014,389252,4392.65,NET,Civica Uk Ltd,10841X
Gloucester City Council,23UE,Disabled Facilities Grants,CY013,Disabled Facility Grants,0074,retention MDF4999,19/08/2014,388363,674.75,CAP,T & P Franklin & Sons Ltd,16150A
Gloucester City Council,23UE,Disabled Facilities Grants,CY013,Disabled Facility Grants,0074,MDF5078,19/08/2014,388348,4169,CAP,Pinetree (Gloucester) Ltd,53288Y
Gloucester City Council,23UE,Docks Complex - Catering Servs,RB110,Catering Provisions -Food,5110,Food w/e 10/08/2014,19/08/2014,389053,62.64,NET,Janes Pantry,24500W
Gloucester City Council,23UE,Docks Complex - Services,RB100,General Repair/Maint Buildings,3000,additional wireless alarm works,19/08/2014,388816,465,NET,Avon Alarms Ltd,02280T
Gloucester City Council,23UE,Museum Phase 2 Hlf,GY001,Contract Payments,0020,Design Consultation Services,19/08/2014,389284,2450,CAP,Ravenhill Design,13928D
Gloucester City Council,23UE,St Michaels Tower,GY016,Contract Payments,0020,St Michael's Tower scaffolding,19/08/2014,388109,38995,CAP,Asm Scaffolding Services Ltd,14573K
Gloucester City Council,23UE,REDACTED,REDACTED,REDACTED,REDACTED,REDACTED,19/08/2014,REDACTED,400,NET,REDACTED,REDACTED
Gloucester City Council,23UE,Summer Festival,LT300,Fees For Services Received,5350,"Event Toilet Hire, Family Day 13/07/2014",19/08/2014,389032,945,NET,B & W Hire Ltd,55477Y
Gloucester City Council,23UE,The Arbor,HC501,Catering Provisions -Food,5110,food,19/08/2014,388562,65.14,NET,Janes Pantry,24500W
Gloucester City Council,23UE,Aspire Admin Charges,LC105,Other Minor Income,9900,BAILIFF PAYMENTS 13/08/14,20/08/2014,389435,110.2,NET,Aspire Sports & Cultural Trust,08135V
Gloucester City Council,23UE,City Museum And Art Gallery,LM200,Catering Provisions -Food,5110,Milk,20/08/2014,389416,4.96,NET,Total Produce Gloucester,12645E
Gloucester City Council,23UE,City Museum And Art Gallery,LM200,Catering Provisions -Food,5110,Milk,20/08/2014,389417,4.96,NET,Total Produce Gloucester,12645E
Gloucester City Council,23UE,City Museum And Art Gallery,LM200,Catering Provisions -Food,5110,Milk,20/08/2014,389418,4.96,NET,Total Produce Gloucester,12645E
Gloucester City Council,23UE,City Museum Catering,LM202,Catering Provisions -Food,5110,Food,20/08/2014,389420,62.3,NET,Woodward Foodservice,10714F
Gloucester City Council,23UE,City Museum Catering,LM202,Catering Provisions -Liquor,5111,Fruit & Veg July 2014,20/08/2014,389419,41.61,NET,Woody's Fruit & Veg,11798L
Gloucester City Council,23UE,City Museum Catering,LM202,Catering Provisions -Liquor,5111,Liquor & Cleaner,20/08/2014,389387,42.93,NET,Cellar Supplies Cheltenham Ltd,01563L
Gloucester City Council,23UE,Civic Admin And Hospitality,RC210,Gifts And Prizes,7150,Cufflinks,20/08/2014,388130,750,NET,Smart Communications (Sw) Ltd,12287J
Gloucester City Council,23UE,Disabled Facilities Grants,CY013,Disabled Facility Grants,0074,disabled facilities grant,20/08/2014,389389,4776,CAP,Bhm Developments Ltd,04532U
Gloucester City Council,23UE,Docks Complex - Catering Servs,RB110,Catering Provisions -Food,5110,Food,20/08/2014,389421,341.04,NET,3663,55585U
Gloucester City Council,23UE,Electrical Investigatory Works,RY142,Contract Payments,0020,Fire Extinguisher Inspections 19/06/14,20/08/2014,387014,146.82,CAP,A & E Fire Equipment Limited,54289L
Gloucester City Council,23UE,Electrical Investigatory Works,RY142,Contract Payments,0020,fire extinguishers,20/08/2014,388677,4.5,CAP,A & E Fire Equipment Limited,54289L
Gloucester City Council,23UE,Electrical Investigatory Works,RY142,Contract Payments,0020,Fire Extinguishers Inspections,20/08/2014,386828,250.44,CAP,A & E Fire Equipment Limited,54289L
Gloucester City Council,23UE,Electrical Investigatory Works,RY142,Purchase Cost -Land,0001,Fire Risk Assessment 23/06/2014,20/08/2014,387145,150,CAP,A & E Fire Equipment Limited,54289L
Gloucester City Council,23UE,Flooding And Drainage,HE306,Maint Of Grounds - General,3030,"Lobleys Drive, removal of wind damaged t",20/08/2014,388328,250,NET,Rj Contracting (Environmental) Ltd,07429H
Gloucester City Council,23UE,Food Safety,HE100,Fees For Services Received,5350,Laundry,20/08/2014,389415,20,NET,Iron Maidens,02180Y
Gloucester City Council,23UE,Guildhall Bar And Caf�,LA210,Catering Provisions -Food,5110,Milk,20/08/2014,389422,4.96,NET,Total Produce Gloucester,12645E
Gloucester City Council,23UE,Guildhall Bar And Caf�,LA210,Catering Provisions -Food,5110,Milk,20/08/2014,389423,4.96,NET,Total Produce Gloucester,12645E
Gloucester City Council,23UE,Guildhall Bar And Caf�,LA210,Catering Provisions -Food,5110,Milk,20/08/2014,389424,4.96,NET,Total Produce Gloucester,12645E
Gloucester City Council,23UE,Guildhall Bar And Caf�,LA210,Catering Provisions -Food,5110,Milk,20/08/2014,389425,4.96,NET,Total Produce Gloucester,12645E
Gloucester City Council,23UE,Guildhall Bar And Caf�,LA210,Catering Provisions -Food,5110,Milk,20/08/2014,389426,4.96,NET,Total Produce Gloucester,12645E
Gloucester City Council,23UE,Guildhall Bar And Caf�,LA210,Catering Provisions -Food,5110,Milk,20/08/2014,389427,4.96,NET,Total Produce Gloucester,12645E
Gloucester City Council,23UE,Guildhall Bar And Caf�,LA210,Catering Provisions -Food,5110,Milk,20/08/2014,389428,4.96,NET,Total Produce Gloucester,12645E
Gloucester City Council,23UE,Herbert Reception Upgrade,RY201,Contract Payments,0020,Herbert reception CDM,20/08/2014,388681,350,CAP,Goddard Consulting Llp,10598G
Gloucester City Council,23UE,Investment Property,RB500,Lift Maintenance,3051,"Engineer 07/07/2014, Eastgate Market",20/08/2014,389407,114.87,NET,Pickerings Europe Ltd*,58816U
Gloucester City Council,23UE,Investment Property,RB500,Repair/Maint Of Fixed Plant,3006,"Service to smoke system, 01/08/2014",20/08/2014,389411,350,NET,Airvent Systems Limited,51073T
Gloucester City Council,23UE,Nms Contract,HI102,General Repair/Maint Buildings,3000,tree removal,20/08/2014,388682,7260,NET,Rdb Safety Boat Ltd,13507J
Gloucester City Council,23UE,Parks Contract Management,LP100,Maint Of Grounds - General,3030,fit rope to pull up ramp - Birch Ave,20/08/2014,388501,82.08,NET,Enterprise (Aol) Ltd,06695G
Gloucester City Council,23UE,Parks Contract Management,LP100,Maint Of Grounds - General,3030,fit skysurf handle,20/08/2014,388499,324.39,NET,Enterprise (Aol) Ltd,06695G
Gloucester City Council,23UE,Pest Control,HD400,Fees For Services Received,5350,Pest Control Visits,20/08/2014,389385,2525,NET,Falconry Services Ltd,10692P
Gloucester City Council,23UE,Pollution Control,HE300,Fees For Services Received,5350,fleece jackets/polo shirts/safety boots,20/08/2014,388477,372.61,NET,Safpro Industrial Supply Co,39190W
Gloucester City Council,23UE,Ranger Centre/Netheridge Wks,RY167,Contract Payments,0020,Topographical survey,20/08/2014,389273,465,CAP,Monument Geomatics,11065F
Gloucester City Council,23UE,Retail Market - Landlord,HM300,Cleaning Materials,3600,Cleaning Materials,20/08/2014,387002,381.57,NET,Core Hygiene Ltd,03885P
Gloucester City Council,23UE,Retail Market - Landlord,HM300,Trade Refuse Collection,3630,food waste service JUL14,20/08/2014,388574,150,NET,B & S Pointon Ltd,06253G
Gloucester City Council,23UE,REDACTED,REDACTED,REDACTED,REDACTED,REDACTED,20/08/2014,REDACTED,44,NET,REDACTED,REDACTED
Gloucester City Council,23UE,REDACTED,REDACTED,REDACTED,REDACTED,REDACTED,20/08/2014,REDACTED,-2.16,NET,REDACTED,REDACTED
Gloucester City Council,23UE,Tic Trading,LT110,Materials For Sale,5080,Polo Shirts & Caps,20/08/2014,389386,140,NET,Sportfolio Europe Lp,14456R
Gloucester City Council,23UE,REDACTED,REDACTED,REDACTED,REDACTED,REDACTED,20/08/2014,REDACTED,650,NET,REDACTED,REDACTED
Gloucester City Council,23UE,Youth Grant 2011/12,FP107,Funding Vol&Com Grps-Grants,7100C,Grant Payment 2014/15,20/08/2014,389372,1100,NET,Gay Glos,04898V
Gloucester City Council,23UE,Youth Grant 2011/12,FP107,Funding Vol&Com Grps-Grants,7100C,Grant Payment 2014/15,20/08/2014,389373,2460,NET,Gloucestershire Dance,01965K
Gloucester City Council,23UE,Youth Grant 2011/12,FP107,Funding Vol&Com Grps-Grants,7100C,Grant Payment 2014/15,20/08/2014,389375,500,NET,38th Longlevens Scout Troop,10334W
Gloucester City Council,23UE,Asset Management,RS300,Basic Pay - Temporary Staff,2751,temporary staff,21/08/2014,389371,693.88,NET,Hays Specialist Recruitment,04355S
Gloucester City Council,23UE,Blackfriars,LA609,Hire Of Equipment,5020,Rental Contract Sep- Dec 2014,21/08/2014,389261,52.65,NET,Wessex Products (Leasing) Ltd,03684C
Gloucester City Council,23UE,Business Support,PT250,Fuel,4012,Fuel,21/08/2014,389287,417.04,NET,Allstar Business Solutions Ltd (Arval),06594A
Gloucester City Council,23UE,Development Management,PT200,Application Fees,9312,refund,21/08/2014,389484,195,NET,Carers Gloucestershire,13335P
Gloucester City Council,23UE,REDACTED,REDACTED,REDACTED,REDACTED,REDACTED,21/08/2014,REDACTED,7500,CAP,REDACTED,REDACTED
Gloucester City Council,23UE,Docks Complex - Catering Servs,RB110,Catering Provisions -Food,5110,Food,21/08/2014,389362,25.56,NET,Taynton Farm Foods,09653F
Gloucester City Council,23UE,Docks Complex - Catering Servs,RB110,Catering Provisions -Food,5110,Food,21/08/2014,389363,25.56,NET,Taynton Farm Foods,09653F
Gloucester City Council,23UE,Docks Complex - Catering Servs,RB110,Catering Provisions -Food,5110,Food,21/08/2014,389379,25.56,NET,Taynton Farm Foods,09653F
Gloucester City Council,23UE,Grants To Voluntary Sector,FG100,Funding Vol&Com Grps-Grants,7100C,Grant Payment 2014/15,21/08/2014,389036,1815,NET,Barton & Tredworth Neighbourhood Partnership,09679L
Gloucester City Council,23UE,REDACTED,REDACTED,REDACTED,REDACTED,REDACTED,21/08/2014,REDACTED,988.96,NET,REDACTED,REDACTED
Gloucester City Council,23UE,REDACTED,REDACTED,REDACTED,REDACTED,REDACTED,21/08/2014,REDACTED,80,NET,REDACTED,REDACTED
Gloucester City Council,23UE,Homelessness,CH120,Board And Lodging,5515,various tenants,21/08/2014,389493,75,NET,James Legge Property (Ltd),07844R
Gloucester City Council,23UE,Homelessness,CH120,Board And Lodging,5515,various tenants,21/08/2014,389486,1850.11,NET,Carbrey Housing Ltd,11098G
Gloucester City Council,23UE,Homelessness,CH120,Board And Lodging,5515,various tenants,21/08/2014,389488,1109.26,NET,Kalmwood Ltd,08568G
Gloucester City Council,23UE,Homelessness,CH120,Board And Lodging,5515,various tenants,21/08/2014,389485,1216.06,NET,Carbrey Housing Ltd,11098G
Gloucester City Council,23UE,REDACTED,REDACTED,REDACTED,REDACTED,REDACTED,21/08/2014,REDACTED,3283.86,NET,REDACTED,REDACTED
Gloucester City Council,23UE,Homelessness,CH120,Board And Lodging,5515,various tenants,21/08/2014,389490,1658.45,NET,Dorchester House Trust,12298D
Gloucester City Council,23UE,Homelessness,CH120,Board And Lodging,5515,various tenants,21/08/2014,389487,393.2,NET,Kimbrose Ltd,06333H
Gloucester City Council,23UE,REDACTED,REDACTED,REDACTED,REDACTED,REDACTED,21/08/2014,REDACTED,10.5,NET,REDACTED,REDACTED
Gloucester City Council,23UE,Museum Phase 2 Hlf,GY001,Contract Payments,0020,temporary staff,21/08/2014,388579,180.5,CAP,Find The Engineer Recruitment Ltd*,12977Z
Gloucester City Council,23UE,REDACTED,REDACTED,REDACTED,REDACTED,REDACTED,21/08/2014,REDACTED,130,NET,REDACTED,REDACTED
Gloucester City Council,23UE,Postal Services,RS120,Postages,5400,Post 25/07 - 07/08 2014,21/08/2014,389290,1752.95,NET,Royal Mail S.Wales & South West,35830S
Gloucester City Council,23UE,Printing,RP103,Printing,5300,Printing July 2014,21/08/2014,388386,2008,NET,Alpha Colour Printers Ltd,00945B
Gloucester City Council,23UE,Swrda Asset Transfer,RY184,Capital General Repairs & Main,0013,Barbican Carpark Improvements,21/08/2014,389539,1914.4,CAP,Anderson Civil Engineering Uk Ltd,09083D
Gloucester City Council,23UE,Tic Trading,LT110,Materials For Sale,5080,Cotswolds Maxi 2015,21/08/2014,389063,138.72,NET,Judge Sampson Ltd,14513E
Gloucester City Council,23UE,Allotments,HI104,Operational Equipment <5000,5012,6yd Skip,22/08/2014,389351,200,NET,Smiths (Gloucester) Ltd,40995Z
Gloucester City Council,23UE,Cemeteries,HC300,Repair/Maint Of Monuments,3004,RC 28/35 04/8/2014,22/08/2014,389369,187.5,NET,Easy Mix Ltd,01403L
Gloucester City Council,23UE,Community Safety Projects,FP500,Other Minor Supplies Services,5590,Non Attendance Fee 16/07/2014,22/08/2014,389384,75,NET,Local Government Association,11683F
Gloucester City Council,23UE,Crematorium,HC200,Memorial Plaques,5053,Boutonierre plaque,22/08/2014,389365,54.75,NET,Treasured Memories Limited,11058H
Gloucester City Council,23UE,Disabled Facilities Grants,CY013,Disabled Facility Grants,0074,disabled facilities grant,22/08/2014,389354,4600,CAP,Beard & Tandy,03160V
Gloucester City Council,23UE,Gl1 Pool Air Handling System,LY152,Contract Payments,0020,GL1 Leisure Centre,22/08/2014,389574,8324.73,CAP,Esg Pool Ventilation Ltd,14715P
Gloucester City Council,23UE,Guildhall Cinema,LA202,Fees For Services Received,5350,Monthly Film Charge August 14,22/08/2014,389034,214.24,NET,Nft Logistics Ltd,13505N
Gloucester City Council,23UE,REDACTED,REDACTED,REDACTED,REDACTED,REDACTED,22/08/2014,REDACTED,100,NET,REDACTED,REDACTED
Gloucester City Council,23UE,REDACTED,REDACTED,REDACTED,REDACTED,REDACTED,22/08/2014,REDACTED,3.06,NET,REDACTED,REDACTED
Gloucester City Council,23UE,REDACTED,REDACTED,REDACTED,REDACTED,REDACTED,22/08/2014,REDACTED,97.27,NET,REDACTED,REDACTED
Gloucester City Council,23UE,REDACTED,REDACTED,REDACTED,REDACTED,REDACTED,22/08/2014,REDACTED,90,NET,REDACTED,REDACTED
Gloucester City Council,23UE,REDACTED,REDACTED,REDACTED,REDACTED,REDACTED,22/08/2014,REDACTED,100,NET,REDACTED,REDACTED
Gloucester City Council,23UE,REDACTED,REDACTED,REDACTED,REDACTED,REDACTED,22/08/2014,REDACTED,150,NET,REDACTED,REDACTED
Gloucester City Council,23UE,REDACTED,REDACTED,REDACTED,REDACTED,REDACTED,22/08/2014,REDACTED,550,NET,REDACTED,REDACTED
Gloucester City Council,23UE,Safer Stronger Communities,FP841,Other Minor Supplies Services,d,Hire of Amplifiers for Reggae Band,22/08/2014,389542,250,NET,Barton & Tredworth Neighbourhood Partnership,09679L
Gloucester City Council,23UE,St Michaels Tower,GY016,Contract Payments,0020,to correct cis deduction,22/08/2014,389569,38995,CAP,Asm Scaffolding Services Ltd,14573K
Gloucester City Council,23UE,Summer Festival,LT300,Fees For Services Received,5350,Ford Transit 16/05/2014,22/08/2014,389049,88.4,NET,Thrifty Van Hire,00546W
Gloucester City Council,23UE,Blackfriars,LA609,Hire Of Equipment,5020,Bechwood Chairs,26/08/2014,389262,154,NET,Valley Furniture Hire Ltd,08324P
Gloucester City Council,23UE,City Museum And Art Gallery,LM200,Exhibits And Collections,5038,Conservation Reports,26/08/2014,389275,424.85,NET,Exeter City Council,53260X
Gloucester City Council,23UE,Civil Parking Enforcement,PT741,Contracted Services,6970,JUL14 services,26/08/2014,388670,21459.75,NET,Apcoa Parking (Uk) Ltd,09954M
Gloucester City Council,23UE,Disabled Facilities Grants,CY013,Disabled Facility Grants,0074,disabled facilities grant,26/08/2014,389532,2013.75,CAP,T & P Franklin & Sons Ltd,16150A
Gloucester City Council,23UE,Flooding And Drainage,HE306,Maint Of Grounds - General,3030,Saintbridge clearance,26/08/2014,388799,120,NET,Tcv T/A The Conservation Volunteers,55897V
Gloucester City Council,23UE,Flooding And Drainage,HE306,Maint Of Grounds - General,3030,Twyver clearance,26/08/2014,388800,240,NET,Tcv T/A The Conservation Volunteers,55897V
Gloucester City Council,23UE,Forest Of Dean Cpe,PT744,Contracted Services,6970,JUL14 services,26/08/2014,388670,1964.59,NET,Apcoa Parking (Uk) Ltd,09954M
Gloucester City Council,23UE,Forest Of Dean Off Street,PT742,Contracted Services,6970,JUL14 services,26/08/2014,388670,1901.02,NET,Apcoa Parking (Uk) Ltd,09954M
Gloucester City Council,23UE,REDACTED,REDACTED,REDACTED,REDACTED,REDACTED,26/08/2014,REDACTED,550,NET,REDACTED,REDACTED
Gloucester City Council,23UE,Guildhall Events,LA200,Fees For Services Received,5350,JULY14 newspapers,26/08/2014,388761,33.4,NET,W H Smith Ltd,40860M
Gloucester City Council,23UE,REDACTED,REDACTED,REDACTED,REDACTED,REDACTED,26/08/2014,REDACTED,24,NET,REDACTED,REDACTED
Gloucester City Council,23UE,Homelessness,CH120,Basic Pay - Temporary Staff,2751,temporary staff,26/08/2014,389264,795.13,NET,James Andrews Recruitment Solutions,13636W
Gloucester City Council,23UE,REDACTED,REDACTED,REDACTED,REDACTED,REDACTED,26/08/2014,REDACTED,364.6,NET,REDACTED,REDACTED
Gloucester City Council,23UE,Legal Services,RS200,Agency Fees,9105,temporary staff,26/08/2014,389052,262.7,NET,Sellick Partnership Group Ltd,11057C
Gloucester City Council,23UE,Legal Services,RS200,Basic Pay - Temporary Staff,2751,temporary staff,26/08/2014,389382,1103.62,NET,Venn Group Ltd,04339P
Gloucester City Council,23UE,Legal Services,RS200,Basic Pay - Temporary Staff,2751,temporary staff,26/08/2014,389390,800,NET,Badenoch & Clark,01536P
Gloucester City Council,23UE,REDACTED,REDACTED,REDACTED,REDACTED,REDACTED,26/08/2014,REDACTED,350,NET,REDACTED,REDACTED
Gloucester City Council,23UE,Nms Contract,HI102,Contracted Services,6970,August 2014,26/08/2014,389263,490613.67,NET,Enterprise (Aol) Ltd,06695G
Gloucester City Council,23UE,Non-Distributed Costs,RC150,Medical Expenses,2950,Underpayment of NIC's,26/08/2014,389595,758.24,NET,Hm Revenue & Customs Nic&Eo,15183D
Gloucester City Council,23UE,Off Street Car Parks,PP110,Contracted Services,6970,JUL14 services,26/08/2014,388670,19012.1,NET,Apcoa Parking (Uk) Ltd,09954M
Gloucester City Council,23UE,Registration Of Electors,RS400,Postages,5400,Response Plus Post 31/05 & 24/06 2014,26/08/2014,389531,1475.24,NET,Royal Mail S.Wales & South West,35830S
Gloucester City Council,23UE,Rehousing,CH111,Basic Pay - Temporary Staff,2751,temporary staff,26/08/2014,389412,711,NET,Building Recruitment Company Ltd,55385E
Gloucester City Council,23UE,REDACTED,REDACTED,REDACTED,REDACTED,REDACTED,26/08/2014,REDACTED,110,NET,REDACTED,REDACTED
Gloucester City Council,23UE,Tic Theatre Ticket Sales,LT107,Materials For Sale,5080,RIAT 2014 TICKET SALES,26/08/2014,389530,5610,NET,Raf Charitable Trust Enterprise,05292F
Gloucester City Council,23UE,Tic Theatre Ticket Sales,LT107,Sale Of Goods And Services,9230,RIAT 2014 TICKET SALES,26/08/2014,389530,-191.25,NET,Raf Charitable Trust Enterprise,05292F
Gloucester City Council,23UE,Training Schemes,ET100,Vocational Training,2970,NVQ assessments,26/08/2014,389496,2140,NET,The Gold Standard,56141C
Gloucester City Council,23UE,Waterwells Park And Ride,PJ120,Contracted Services,6970,JUL14 services,26/08/2014,388670,403.52,NET,Apcoa Parking (Uk) Ltd,09954M
Gloucester City Council,23UE,Aspire Admin Charges,LC105,Other Minor Income,9900,BAILIFF PAYMENTS 08/08/14,27/08/2014,389627,88.5,NET,Aspire Sports & Cultural Trust,08135V
Gloucester City Council,23UE,Aspire Admin Charges,LC105,Security Services Fees,5351,Contract Services September 2014,27/08/2014,389291,264.51,NET,G4s Cash Solutions (Uk) Ltd,04290V
Gloucester City Council,23UE,Cems/Crems Admin,HC100,Security Services Fees,5351,Contract Services September 2014,27/08/2014,389291,100.51,NET,G4s Cash Solutions (Uk) Ltd,04290V
Gloucester City Council,23UE,City Museum And Art Gallery,LM200,Advertising And Publicity,5702,Advertorial & online promotions,27/08/2014,389132,700,NET,Cds Publications,59644P
Gloucester City Council,23UE,City Museum And Art Gallery,LM200,Security Services Fees,5351,Contract Services September 2014,27/08/2014,389291,88.17,NET,G4s Cash Solutions (Uk) Ltd,04290V
Gloucester City Council,23UE,Client Revs & Bens Contract,RT240,Bailiffs Fees,5368,VAT due on statutory fees,27/08/2014,389377,0,NET,Bristow & Sutor,05450M
Gloucester City Council,23UE,Client Revs & Bens Contract,RT240,Bailiffs Fees,5368,VAT on fees collected,27/08/2014,389266,0,NET,Phoenix Commercial Collections Ltd,13435J
Gloucester City Council,23UE,Client Revs & Bens Contract,RT240,Bailiffs Fees,5368,VAT on fees collected,27/08/2014,389267,0,NET,Phoenix Commercial Collections Ltd,13435J
Gloucester City Council,23UE,Client Revs & Bens Contract,RT240,Bailiffs Fees,5368,VAT on fees collected,27/08/2014,389268,0,NET,Phoenix Commercial Collections Ltd,13435J
Gloucester City Council,23UE,Client Revs & Bens Contract,RT240,Bailiffs Fees,5368,VAT on fees collected,27/08/2014,389280,0,NET,Phoenix Commercial Collections Ltd,13435J
Gloucester City Council,23UE,Client Revs & Bens Contract,RT240,Bailiffs Fees,5368,VAT on fees collected,27/08/2014,389281,0,NET,Phoenix Commercial Collections Ltd,13435J
Gloucester City Council,23UE,Client Revs & Bens Contract,RT240,Bailiffs Fees,5368,VAT on statutory fees,27/08/2014,389376,174.5,NET,Bristow & Sutor,05450M
Gloucester City Council,23UE,Client Revs & Bens Contract,RT240,Bailiffs Fees,5368,VAT on Statutory fees,27/08/2014,389378,0,NET,Bristow & Sutor,05450M
Gloucester City Council,23UE,REDACTED,REDACTED,REDACTED,REDACTED,REDACTED,27/08/2014,REDACTED,54.3,NET,REDACTED,REDACTED
Gloucester City Council,23UE,Client Revs & Bens Contract,RT240,Fees For Services Received,5350,Apr- Jun Charges 2014,27/08/2014,389265,99.55,NET,Brighton & Hove City Council,00078J
Gloucester City Council,23UE,Client Revs & Bens Contract,RT240,Security Services Fees,5351,Contract Services September 2014,27/08/2014,389291,263.37,NET,G4s Cash Solutions (Uk) Ltd,04290V
Gloucester City Council,23UE,Docks Complex - Catering Servs,RB110,Catering Provisions -Food,5110,Food w/e 17/08/2014,27/08/2014,389356,68.36,NET,Janes Pantry,24500W
Gloucester City Council,23UE,Folk Museum,LM210,Advertising And Publicity,5702,Advertorial & online promotions,27/08/2014,389132,700,NET,Cds Publications,59644P
Gloucester City Council,23UE,Folk Museum,LM210,Security Services Fees,5351,Contract Services September 2014,27/08/2014,389291,88.17,NET,G4s Cash Solutions (Uk) Ltd,04290V
Gloucester City Council,23UE,Gloucester Guildhall,LA100,Security Services Fees,5351,Contract Services September 2014,27/08/2014,389291,88.17,NET,G4s Cash Solutions (Uk) Ltd,04290V
Gloucester City Council,23UE,Guildhall Bar And Caf�,LA210,Catering Provisions -Food,5110,Fruit & Veg July 2014,27/08/2014,389698,129.39,NET,Woody's Fruit & Veg,11798L
Gloucester City Council,23UE,Hempsted Market/Car Boot,HM234,Hire Of Equipment,5020,Portable Office August 2014,27/08/2014,389061,254.19,NET,Portable Offices (Hire ) Ltd*,06286R
Gloucester City Council,23UE,REDACTED,REDACTED,REDACTED,REDACTED,REDACTED,27/08/2014,REDACTED,484.6,NET,REDACTED,REDACTED
Gloucester City Council,23UE,Homelessness,CH120,Rent In Advance,5516,REDACTED,27/08/2014,389604,484.6,NET,Cgt Lettings,05899H
Gloucester City Council,23UE,REDACTED,REDACTED,REDACTED,REDACTED,REDACTED,27/08/2014,REDACTED,390,NET,REDACTED,REDACTED
Gloucester City Council,23UE,REDACTED,REDACTED,REDACTED,REDACTED,REDACTED,27/08/2014,REDACTED,301.75,NET,REDACTED,REDACTED
Gloucester City Council,23UE,REDACTED,REDACTED,REDACTED,REDACTED,REDACTED,27/08/2014,REDACTED,500,NET,REDACTED,REDACTED
Gloucester City Council,23UE,Homelessness Prevention,CH122,Fees For Services Received,5350,REDACTED,27/08/2014,389604,500,NET,Cgt Lettings,05899H
Gloucester City Council,23UE,Legal Services,RS200,Basic Pay - Temporary Staff,2751,temporary staff,27/08/2014,389381,1231.43,NET,Venn Group Ltd,04339P
Gloucester City Council,23UE,Legal Services,RS200,Basic Pay - Temporary Staff,2751,temporary staff,27/08/2014,389534,800,NET,Badenoch & Clark,01536P
Gloucester City Council,23UE,Retail Market - Landlord,HM300,Cleaning / Domestic Equipment,5011,Cabinets,27/08/2014,387904,18.05,NET,Initial Washroom Solutions,06143R
Gloucester City Council,23UE,Tourism Marketing,LT100,Security Services Fees,5351,Contract Services September 2014,27/08/2014,389291,88.17,NET,G4s Cash Solutions (Uk) Ltd,04290V
Gloucester City Council,23UE,Utilities,PT502,Electricity Supply,3110,UTILITIES TO AUG 2014,27/08/2014,389431,39450.75,NET,West Mercia Energy,11669Z
Gloucester City Council,23UE,Utilities,PT502,Gas Supply,3100,UTILITIES TO AUG 2014,27/08/2014,389431,13097.55,NET,West Mercia Energy,11669Z
Gloucester City Council,23UE,Blackfriars,LA609,Fees For Services Received,5350,Guided Tours,28/08/2014,389665,70,NET,REDACTED,REDACTED
Gloucester City Council,23UE,REDACTED,REDACTED,REDACTED,REDACTED,REDACTED,28/08/2014,REDACTED,260,NET,REDACTED,REDACTED
Gloucester City Council,23UE,Business Grants,GY007,Contract Payments,0020,Growth Accelerator Business Grant,28/08/2014,389651,650,CAP,One To One Recruitment,04752H
Gloucester City Council,23UE,Cemeteries,HC300,Maint Of Grounds - General,3030,Chain Saw Chains,28/08/2014,389677,66.2,NET,Garden Machinery Gloucester,55641K
Gloucester City Council,23UE,Client Revs & Bens Contract,RT240,Bailiffs Fees,5368,VAT due on Statutory Fees,28/08/2014,389660,0,NET,Bristow & Sutor,05450M
Gloucester City Council,23UE,Client Revs & Bens Contract,RT240,Bailiffs Fees,5368,VAT on fees collected,28/08/2014,389635,0,NET,Phoenix Commercial Collections Ltd,13435J
Gloucester City Council,23UE,Client Revs & Bens Contract,RT240,Bailiffs Fees,5368,VAT on fees collected,28/08/2014,389636,0,NET,Phoenix Commercial Collections Ltd,13435J
Gloucester City Council,23UE,Client Revs & Bens Contract,RT240,Bailiffs Fees,5368,VAT on Statutory Fees,28/08/2014,389661,375,NET,Bristow & Sutor,05450M
Gloucester City Council,23UE,Council Streetcare Team,HI101,Other Minor Supplies Services,5590,3 Keys,28/08/2014,389632,16.67,NET,Keymaster Security Ltd,10981D
Gloucester City Council,23UE,Countryside Unit,LP201,Tyres,4014,Chengshin AGR Tube,28/08/2014,389634,14.22,NET,A T S Euromaster Ltd,01860B
Gloucester City Council,23UE,Crematorium,HC200,Memorial Plaques,5053,Bronze Cast Kerb Plaques,28/08/2014,389675,252,NET,Arkell & Hurcombe,59812T
Gloucester City Council,23UE,Crematorium,HC200,Memorial Plaques,5053,Plaques,28/08/2014,389676,396,NET,Arkell & Hurcombe,59812T
Gloucester City Council,23UE,Crematorium,HC200,Memorial Plaques,5053,Plaques,28/08/2014,389678,48,NET,Arkell & Hurcombe,59812T
Gloucester City Council,23UE,Crematorium,HC200,Memorial Plaques,5053,Plaques,28/08/2014,389679,118,NET,Arkell & Hurcombe,59812T
Gloucester City Council,23UE,Crematorium,HC200,Repair/Maint Of Fixed Plant,3006,Call out repair,28/08/2014,389649,803.34,NET,Facultatieve Technologies Ltd,51210H
Gloucester City Council,23UE,Crematorium,HC200,Repair/Maint Of Fixed Plant,3006,Call out repair,28/08/2014,389650,265.28,NET,Facultatieve Technologies Ltd,51210H
Gloucester City Council,23UE,Disabled Facilities Grants,CY013,Disabled Facility Grants,0074,disabled facilities grant,28/08/2014,389692,5941.99,CAP,L Coward & Son Ltd,47989M
Gloucester City Council,23UE,Docks Complex - Services,RB100,Repair/Maint Of Fixed Plant,3006,Plug off old gas supply,28/08/2014,386752,72.17,NET,Hewer Facilities Mgt Ltd,05232A
Gloucester City Council,23UE,Enhanced Lighting Schemes,PY118,Contract Payments,0020,Lighting Design,28/08/2014,389683,3847.33,CAP,It Does Ltd,15108J
Gloucester City Council,23UE,Flooding And Drainage,HE306,Maint Of Grounds - General,3030,"Church Drive, clear water channels",28/08/2014,389669,270,NET,Rdb Safety Boat Ltd,13507J
Gloucester City Council,23UE,Guildhall Bar And Caf�,LA210,Catering Provisions -Food,5110,Ice Cream,28/08/2014,389682,72,NET,Winstones Ice Cream Ltd,56347D
Gloucester City Council,23UE,Guildhall Bar And Caf�,LA210,Catering Provisions -Liquor,5111,Drinks,28/08/2014,389681,243.32,NET,Cellar Supplies Cheltenham Ltd,01563L
Gloucester City Council,23UE,REDACTED,REDACTED,REDACTED,REDACTED,REDACTED,28/08/2014,REDACTED,104.67,NET,REDACTED,REDACTED
Gloucester City Council,23UE,REDACTED,REDACTED,REDACTED,REDACTED,REDACTED,28/08/2014,REDACTED,80,NET,REDACTED,REDACTED
Gloucester City Council,23UE,REDACTED,REDACTED,REDACTED,REDACTED,REDACTED,28/08/2014,REDACTED,132.75,NET,REDACTED,REDACTED
Gloucester City Council,23UE,REDACTED,REDACTED,REDACTED,REDACTED,REDACTED,28/08/2014,REDACTED,100,NET,REDACTED,REDACTED
Gloucester City Council,23UE,REDACTED,REDACTED,REDACTED,REDACTED,REDACTED,28/08/2014,REDACTED,94.94,NET,REDACTED,REDACTED
Gloucester City Council,23UE,REDACTED,REDACTED,REDACTED,REDACTED,REDACTED,28/08/2014,REDACTED,615,NET,REDACTED,REDACTED
Gloucester City Council,23UE,REDACTED,REDACTED,REDACTED,REDACTED,REDACTED,28/08/2014,REDACTED,125,NET,REDACTED,REDACTED
Gloucester City Council,23UE,REDACTED,REDACTED,REDACTED,REDACTED,REDACTED,28/08/2014,REDACTED,250,NET,REDACTED,REDACTED
Gloucester City Council,23UE,REDACTED,REDACTED,REDACTED,REDACTED,REDACTED,28/08/2014,REDACTED,50,NET,REDACTED,REDACTED
Gloucester City Council,23UE,REDACTED,REDACTED,REDACTED,REDACTED,REDACTED,28/08/2014,REDACTED,125,NET,REDACTED,REDACTED
Gloucester City Council,23UE,REDACTED,REDACTED,REDACTED,REDACTED,REDACTED,28/08/2014,REDACTED,484.6,NET,REDACTED,REDACTED
Gloucester City Council,23UE,REDACTED,REDACTED,REDACTED,REDACTED,REDACTED,28/08/2014,REDACTED,525,NET,REDACTED,REDACTED
Gloucester City Council,23UE,REDACTED,REDACTED,REDACTED,REDACTED,REDACTED,28/08/2014,REDACTED,500,NET,REDACTED,REDACTED
Gloucester City Council,23UE,Investment Property,RB500,Repair/Maint Of Fixed Plant,3006,Annual Service,28/08/2014,386732,348,NET,Hewer Facilities Mgt Ltd,05232A
Gloucester City Council,23UE,Investment Property,RB500,Repair/Maint Of Fixed Plant,3006,Investigate fault on ground floor,28/08/2014,386753,135,NET,Hewer Facilities Mgt Ltd,05232A
Gloucester City Council,23UE,Investment Property,RB500,Water Supply,3400,ACCT 6540022682 SWISS COTTAGE,28/08/2014,389433,373.78,NET,Severn Trent Water,01823H
Gloucester City Council,23UE,Matson & Robinswood Play S106,LY151,Contract Payments,0020,1 Carved Log Bench,28/08/2014,389662,1920,CAP,Wild Wood Carving,13438C
Gloucester City Council,23UE,Parks Contract Management,LP100,Maint Of Grounds - General,3030,"Smooth Metal Paint, Brushes",28/08/2014,389645,226.19,NET,Ppg Architectural Coatings Uk Limited,04709C
Gloucester City Council,23UE,Pollution Control,HE300,Fees For Services Received,5350,Tea/Water,28/08/2014,389511,111.15,NET,Gradko International Ltd,11063B
Gloucester City Council,23UE,Registration Of Electors,RS400,Fees For Services Received,5350,Storage Polling Booths July 2014,28/08/2014,389527,235,NET,Armstrong Removals,04632N
Gloucester City Council,23UE,Registration Of Electors,RS400,Postages,5400,Response Service 24/05 - 02/08 2014,28/08/2014,389289,199.81,NET,Royal Mail S.Wales & South West,35830S
Gloucester City Council,23UE,Rugby World Cup,LT450,Maint Of Grounds - General,3030,Rugby Posts Removed,28/08/2014,389670,390,NET,Mpl Wrought Iron Llp,03907P
Gloucester City Council,23UE,Stationery Services,RS150,Stationery,5302,Stationary,28/08/2014,389674,5.08,NET,Lyreco Uk Ltd,11746G
Gloucester City Council,23UE,Stationery Services,RS150,Stationery,5302,100000 Sheets of Paper,28/08/2014,389647,451,NET,Premier Paper Group Ltd,09166Y
Gloucester City Council,23UE,Summer Festival,LT300,Printing,5300,Signage,28/08/2014,389656,116.7,NET,Smart Communications (Sw) Ltd,12287J
Gloucester City Council,23UE,Tourism Marketing,LT100,Uniforms,5201,Name Badge,28/08/2014,389631,6.75,NET,Akorn Badges,51779S
Gloucester City Council,23UE,Utilities,PT502,Electricity Supply,3110,ROMAN EXCAVATIONS,28/08/2014,389432,657.24,NET,Southern Electric,05714A
Gloucester City Council,23UE,Accelerator 1 Econ Challenge F,FP302,Other Minor Supplies Services,5590,01/01/14- 31/03/14 advisory services,29/08/2014,384663,360,NET,Gloucestershire Enterprise Ltd,18643A
Gloucester City Council,23UE,Stationery Services,RS150,Stationery,5302,Stationary,29/08/2014,389688,69.89,NET,Lyreco Uk Ltd,11746G
Gloucester City Council,23UE,REDACTED,REDACTED,REDACTED,REDACTED,REDACTED,29/08/2014,REDACTED,1850,NET,REDACTED,REDACTED
Gloucester City Council,23UE,Tourism Marketing,LT100,Exhibits And Collections,5038,XMAS MARKET STALL,29/08/2014,389772,30,NET,Chapter Of Gloucester Cathedral,11278V
Gloucester City Council,23UE,REDACTED,REDACTED,REDACTED,REDACTED,REDACTED,01/09/2014,REDACTED,25,NET,REDACTED,REDACTED
Gloucester City Council,23UE,Dclg High St Renewal Fund,FP308,Other Minor Supplies Services,5590,World Cup Street Party Funding,01/09/2014,387627,1500,NET,Marketing Gloucester Ltd,08925E
Gloucester City Council,23UE,Disabled Facilities Grants,CY013,Disabled Facility Grants,0074,GRANT MDF5070,01/09/2014,389777,5546.04,CAP,Mears Home Improvement Ltd,00096G
Gloucester City Council,23UE,Disabled Facilities Grants,CY013,Disabled Facility Grants,0074,GRANT REF MDF5065,01/09/2014,389778,6714.45,CAP,L Coward & Son Ltd,47989M
Gloucester City Council,23UE,Disabled Facilities Grants,CY013,Disabled Facility Grants,0074,GRANT REF MDF5096,01/09/2014,389784,1885,CAP,Dolphin Lifts (Western) Ltd,10661B
Gloucester City Council,23UE,REDACTED,REDACTED,REDACTED,REDACTED,REDACTED,01/09/2014,REDACTED,25,NET,REDACTED,REDACTED
Gloucester City Council,23UE,REDACTED,REDACTED,REDACTED,REDACTED,REDACTED,01/09/2014,REDACTED,25,NET,REDACTED,REDACTED
Gloucester City Council,23UE,Homelessness,CH120,Rent In Advance,5516,REDACTED,02/09/2014,388437,364.6,NET,Barton & Tredworth Developments Ltd,58165T
Gloucester City Council,23UE,REDACTED,REDACTED,REDACTED,REDACTED,REDACTED,04/09/2014,REDACTED,25,NET,REDACTED,REDACTED
Gloucester City Council,23UE,Corporate Expenses,RC110,Fees For Services Received,5350,"Contribution, health & care scrutiny com",08/09/2014,388261,2500,NET,Gloucestershire County Council,18650D
Gloucester City Council,23UE,Financial Services,RT200,Fees For Services Received,5350,Parking Income June 2014,08/09/2014,388330,66543.86,NET,Gloucestershire County Council,18650D
Gloucester City Council,23UE,REDACTED,REDACTED,REDACTED,REDACTED,REDACTED,10/09/2014,REDACTED,35,NET,REDACTED,REDACTED
Gloucester City Council,23UE,Contact Centre,RB300,Uniforms,5201,"Blouses, Trousers",,389276,104.9,NET,Meltemi Company Clothing Limited,54572N
Gloucester City Council,23UE,Financial Services,RT200,Fees For Services Received,5350,Camera,,388406,61.5,NET,Quadrant Security Group Ltd,05109A
Gloucester City Council,23UE,Financial Services,RT200,Fees For Services Received,5350,Camera 4,,388407,41,NET,Quadrant Security Group Ltd,05109A
,,,,,,,,Sum:,3606819.66,,,
